{"text_format":"3","workbook":"xlsx","n_sheets":4,"sheets":["BUDSJETTSAMMENDRAG HITTIL I ÅR","SAMMENDRAG MÅNEDLIGE UTGIFTER","SPESIFISERTE UTGIFTER","VELDEDIGE FORMÅL SPONSORAVTALER"],"not_rendered":{"defined_names":15},"read":"whole","date_system":"1900"}

{"sheet":"BUDSJETTSAMMENDRAG HITTIL I ÅR","index":0,"n_rows":17,"n_cols":7,"rows_kept":17,"merged":[[1,1,1,4]]}
[null,"SAMMENDRAG MÅNEDLIGE UTGIFTER"]
[null,"FAKTISK i forhold til BUDSJETT HITTIL I ÅR",{"$nulls":3},"år",{"$f":"YEAR(TODAY())","v":2019}]
[]
[null,"Finanskode","Kontonavn","Faktisk","Budsjett","Gjenstående kr","Gjenstående %"]
[null,1000,"Annonsering",{"$f":"SUMIF(MonthlyExpensesSummary[Finanskode],YearToDateTable[[#This Row],[Finanskode]],MonthlyExpensesSummary[Totalt])","v":{"v":0,"d":"kr 0.00"}},{"v":100000,"d":"kr 100,000.00"},{"$f":"IF(YearToDateTable[[#This Row],[Budsjett]]=\"\",\"\",YearToDateTable[[#This Row],[Budsjett]]-YearToDateTable[[#This Row],[Faktisk]])","v":{"v":100000,"d":"kr 100,000.00"}},{"$f":"IFERROR(YearToDateTable[[#This Row],[Gjenstående kr]]/YearToDateTable[[#This Row],[Budsjett]],\"\")","v":{"v":1,"d":"100.00%"}}]
[null,2000,"Kontorrekvisita",{"$f":"SUMIF(MonthlyExpensesSummary[Finanskode],YearToDateTable[[#This Row],[Finanskode]],MonthlyExpensesSummary[Totalt])","v":{"v":0,"d":"kr 0.00"}},{"v":100000,"d":"kr 100,000.00"},{"$f":"IF(YearToDateTable[[#This Row],[Budsjett]]=\"\",\"\",YearToDateTable[[#This Row],[Budsjett]]-YearToDateTable[[#This Row],[Faktisk]])","v":{"v":100000,"d":"kr 100,000.00"}},{"$f":"IFERROR(YearToDateTable[[#This Row],[Gjenstående kr]]/YearToDateTable[[#This Row],[Budsjett]],\"\")","v":{"v":1,"d":"100.00%"}}]
[null,3000,"Skrivere",{"$f":"SUMIF(MonthlyExpensesSummary[Finanskode],YearToDateTable[[#This Row],[Finanskode]],MonthlyExpensesSummary[Totalt])","v":{"v":0,"d":"kr 0.00"}},{"v":100000,"d":"kr 100,000.00"},{"$f":"IF(YearToDateTable[[#This Row],[Budsjett]]=\"\",\"\",YearToDateTable[[#This Row],[Budsjett]]-YearToDateTable[[#This Row],[Faktisk]])","v":{"v":100000,"d":"kr 100,000.00"}},{"$f":"IFERROR(YearToDateTable[[#This Row],[Gjenstående kr]]/YearToDateTable[[#This Row],[Budsjett]],\"\")","v":{"v":1,"d":"100.00%"}}]
[null,4000,"Serverkostnader",{"$f":"SUMIF(MonthlyExpensesSummary[Finanskode],YearToDateTable[[#This Row],[Finanskode]],MonthlyExpensesSummary[Totalt])","v":{"v":0,"d":"kr 0.00"}},{"v":100000,"d":"kr 100,000.00"},{"$f":"IF(YearToDateTable[[#This Row],[Budsjett]]=\"\",\"\",YearToDateTable[[#This Row],[Budsjett]]-YearToDateTable[[#This Row],[Faktisk]])","v":{"v":100000,"d":"kr 100,000.00"}},{"$f":"IFERROR(YearToDateTable[[#This Row],[Gjenstående kr]]/YearToDateTable[[#This Row],[Budsjett]],\"\")","v":{"v":1,"d":"100.00%"}}]
[null,5000,"Utstyr",{"$f":"SUMIF(MonthlyExpensesSummary[Finanskode],YearToDateTable[[#This Row],[Finanskode]],MonthlyExpensesSummary[Totalt])","v":{"v":0,"d":"kr 0.00"}},{"v":50000,"d":"kr 50,000.00"},{"$f":"IF(YearToDateTable[[#This Row],[Budsjett]]=\"\",\"\",YearToDateTable[[#This Row],[Budsjett]]-YearToDateTable[[#This Row],[Faktisk]])","v":{"v":50000,"d":"kr 50,000.00"}},{"$f":"IFERROR(YearToDateTable[[#This Row],[Gjenstående kr]]/YearToDateTable[[#This Row],[Budsjett]],\"\")","v":{"v":1,"d":"100.00%"}}]
[null,6000,"Klientutgifter",{"$f":"SUMIF(MonthlyExpensesSummary[Finanskode],YearToDateTable[[#This Row],[Finanskode]],MonthlyExpensesSummary[Totalt])","v":{"v":0,"d":"kr 0.00"}},{"v":25000,"d":"kr 25,000.00"},{"$f":"IF(YearToDateTable[[#This Row],[Budsjett]]=\"\",\"\",YearToDateTable[[#This Row],[Budsjett]]-YearToDateTable[[#This Row],[Faktisk]])","v":{"v":25000,"d":"kr 25,000.00"}},{"$f":"IFERROR(YearToDateTable[[#This Row],[Gjenstående kr]]/YearToDateTable[[#This Row],[Budsjett]],\"\")","v":{"v":1,"d":"100.00%"}}]
[null,7000,"Datamaskiner",{"$f":"SUMIF(MonthlyExpensesSummary[Finanskode],YearToDateTable[[#This Row],[Finanskode]],MonthlyExpensesSummary[Totalt])","v":{"v":0,"d":"kr 0.00"}},{"v":75000,"d":"kr 75,000.00"},{"$f":"IF(YearToDateTable[[#This Row],[Budsjett]]=\"\",\"\",YearToDateTable[[#This Row],[Budsjett]]-YearToDateTable[[#This Row],[Faktisk]])","v":{"v":75000,"d":"kr 75,000.00"}},{"$f":"IFERROR(YearToDateTable[[#This Row],[Gjenstående kr]]/YearToDateTable[[#This Row],[Budsjett]],\"\")","v":{"v":1,"d":"100.00%"}}]
[null,8000,"Medisinsk plan",{"$f":"SUMIF(MonthlyExpensesSummary[Finanskode],YearToDateTable[[#This Row],[Finanskode]],MonthlyExpensesSummary[Totalt])","v":{"v":0,"d":"kr 0.00"}},{"v":65000,"d":"kr 65,000.00"},{"$f":"IF(YearToDateTable[[#This Row],[Budsjett]]=\"\",\"\",YearToDateTable[[#This Row],[Budsjett]]-YearToDateTable[[#This Row],[Faktisk]])","v":{"v":65000,"d":"kr 65,000.00"}},{"$f":"IFERROR(YearToDateTable[[#This Row],[Gjenstående kr]]/YearToDateTable[[#This Row],[Budsjett]],\"\")","v":{"v":1,"d":"100.00%"}}]
[null,9000,"Bygningskostnader",{"$f":"SUMIF(MonthlyExpensesSummary[Finanskode],YearToDateTable[[#This Row],[Finanskode]],MonthlyExpensesSummary[Totalt])","v":{"v":0,"d":"kr 0.00"}},{"v":125000,"d":"kr 125,000.00"},{"$f":"IF(YearToDateTable[[#This Row],[Budsjett]]=\"\",\"\",YearToDateTable[[#This Row],[Budsjett]]-YearToDateTable[[#This Row],[Faktisk]])","v":{"v":125000,"d":"kr 125,000.00"}},{"$f":"IFERROR(YearToDateTable[[#This Row],[Gjenstående kr]]/YearToDateTable[[#This Row],[Budsjett]],\"\")","v":{"v":1,"d":"100.00%"}}]
[null,10000,"Markedsføring",{"$f":"SUMIF(MonthlyExpensesSummary[Finanskode],YearToDateTable[[#This Row],[Finanskode]],MonthlyExpensesSummary[Totalt])","v":{"v":0,"d":"kr 0.00"}},{"v":100000,"d":"kr 100,000.00"},{"$f":"IF(YearToDateTable[[#This Row],[Budsjett]]=\"\",\"\",YearToDateTable[[#This Row],[Budsjett]]-YearToDateTable[[#This Row],[Faktisk]])","v":{"v":100000,"d":"kr 100,000.00"}},{"$f":"IFERROR(YearToDateTable[[#This Row],[Gjenstående kr]]/YearToDateTable[[#This Row],[Budsjett]],\"\")","v":{"v":1,"d":"100.00%"}}]
[null,11000,"Veldedige formål",{"$f":"SUMIF(MonthlyExpensesSummary[Finanskode],YearToDateTable[[#This Row],[Finanskode]],MonthlyExpensesSummary[Totalt])","v":{"v":0,"d":"kr 0.00"}},{"v":250000,"d":"kr 250,000.00"},{"$f":"IF(YearToDateTable[[#This Row],[Budsjett]]=\"\",\"\",YearToDateTable[[#This Row],[Budsjett]]-YearToDateTable[[#This Row],[Faktisk]])","v":{"v":250000,"d":"kr 250,000.00"}},{"$f":"IFERROR(YearToDateTable[[#This Row],[Gjenstående kr]]/YearToDateTable[[#This Row],[Budsjett]],\"\")","v":{"v":1,"d":"100.00%"}}]
[null,12000,"Sponsoravtaler",{"$f":"SUMIF(MonthlyExpensesSummary[Finanskode],YearToDateTable[[#This Row],[Finanskode]],MonthlyExpensesSummary[Totalt])","v":{"v":0,"d":"kr 0.00"}},{"v":50000,"d":"kr 50,000.00"},{"$f":"IF(YearToDateTable[[#This Row],[Budsjett]]=\"\",\"\",YearToDateTable[[#This Row],[Budsjett]]-YearToDateTable[[#This Row],[Faktisk]])","v":{"v":50000,"d":"kr 50,000.00"}},{"$f":"IFERROR(YearToDateTable[[#This Row],[Gjenstående kr]]/YearToDateTable[[#This Row],[Budsjett]],\"\")","v":{"v":1,"d":"100.00%"}}]
[null,"Totalt",null,{"$f":"SUBTOTAL(109,YearToDateTable[Faktisk])","v":{"v":0,"d":"kr 0.00"}},{"$f":"SUBTOTAL(109,YearToDateTable[Budsjett])","v":{"v":1140000,"d":"kr 1,140,000.00"}},{"$f":"SUBTOTAL(109,YearToDateTable[Gjenstående kr])","v":{"v":1140000,"d":"kr 1,140,000.00"}},{"$f":"YearToDateTable[[#Totals],[Gjenstående kr]]/YearToDateTable[[#Totals],[Budsjett]]","v":{"v":1,"d":"100.00%"}}]

{"sheet":"SAMMENDRAG MÅNEDLIGE UTGIFTER","index":1,"n_rows":18,"n_cols":17,"rows_kept":18,"merged":[[1,1,1,16]]}
[null,"BUDSJETTSAMMENDRAG HITTIL I ÅR","SPESIFISERTE UTGIFTER"]
[null,"SAMMENDRAG MÅNEDLIGE UTGIFTER"]
[null,"Slicer for å filtrere data etter kontonavn er i denne cellen.",null,{"$f":"DATEVALUE(\"1. JAN\"&_ÅR)","v":{"v":43466,"d":"4346600.00 %"}},{"$f":"DATEVALUE(\"1. FEB\"&_ÅR)","v":{"v":43497,"d":"4349700.00 %"}},{"$f":"DATEVALUE(\"1. MAR\"&_ÅR)","v":{"v":43525,"d":"4352500.00 %"}},{"$f":"DATEVALUE(\"1. APR\"&_ÅR)","v":{"v":43556,"d":"4355600.00 %"}},{"$f":"DATEVALUE(\"1. MAI\"&_ÅR)","v":{"v":43586,"d":"4358600.00 %"}},{"$f":"DATEVALUE(\"1. JUN\"&_ÅR)","v":{"v":43617,"d":"4361700.00 %"}},{"$f":"DATEVALUE(\"1. JUL\"&_ÅR)","v":{"v":43647,"d":"4364700.00 %"}},{"$f":"DATEVALUE(\"1. AUG\"&_ÅR)","v":{"v":43678,"d":"4367800.00 %"}},{"$f":"DATEVALUE(\"1. SEP\"&_ÅR)","v":{"v":43709,"d":"4370900.00 %"}},{"$f":"DATEVALUE(\"1. OKT\"&_ÅR)","v":{"v":43739,"d":"4373900.00 %"}},{"$f":"DATEVALUE(\"1. NOV\"&_ÅR)","v":{"v":43770,"d":"4377000.00 %"}},{"$f":"DATEVALUE(\"1. DES\"&_ÅR)","v":{"v":43800,"d":"4380000.00 %"}}]
[{"$nulls":3},{"$f":"EOMONTH(D3,0)","v":{"v":43496,"d":"4349600.00 %"}},{"$f":"EOMONTH(E3,0)","v":{"v":43524,"d":"4352400.00 %"}},{"$f":"EOMONTH(F3,0)","v":{"v":43555,"d":"4355500.00 %"}},{"$f":"EOMONTH(G3,0)","v":{"v":43585,"d":"4358500.00 %"}},{"$f":"EOMONTH(H3,0)","v":{"v":43616,"d":"4361600.00 %"}},{"$f":"EOMONTH(I3,0)","v":{"v":43646,"d":"4364600.00 %"}},{"v":43677,"d":"4367700.00 %"},{"v":43708,"d":"4370800.00 %"},{"v":43738,"d":"4373800.00 %"},{"v":43769,"d":"4376900.00 %"},{"v":43799,"d":"4379900.00 %"},{"v":43830,"d":"4383000.00 %"}]
[null,"Finanskode","Kontonavn","Januar","Februar","Mars","April","Mai","Juni","Juli","August","September","Oktober","November","Desember","Totalt"," "]
[null,1000,"Annonsering",{"$f":"SUMIFS(ItemizedExpenses[Sjekkbeløp],ItemizedExpenses[Finanskode],MonthlyExpensesSummary[[#This Row],[Finanskode]],ItemizedExpenses[Fakturadato],\">=\"&D$3,ItemizedExpenses[Fakturadato],\"<=\"&D$4)+SUMIFS(Annet[Sjekkbeløp],Annet[Finanskode],MonthlyExpensesSummary[[#This Row],[Finanskode]],Annet[Dato for sjekkforespørsel],\">=\"&DATEVALUE(\" 1. \"&MonthlyExpensesSummary[[#Headers],[Januar]]&_ÅR),Annet[Dato for sjekkforespørsel],\"<=\"&D$4)","v":{"v":0,"d":"kr 0.00"}},{"$f":"SUMIFS(ItemizedExpenses[Sjekkbeløp],ItemizedExpenses[Finanskode],MonthlyExpensesSummary[[#This Row],[Finanskode]],ItemizedExpenses[Fakturadato],\">=\"&E$3,ItemizedExpenses[Fakturadato],\"<=\"&E$4)+SUMIFS(Annet[Sjekkbeløp],Annet[Finanskode],MonthlyExpensesSummary[[#This Row],[Finanskode]],Annet[Dato for sjekkforespørsel],\">=\"&DATEVALUE(\" 1. \"&MonthlyExpensesSummary[[#Headers],[Februar]]&_ÅR),Annet[Dato for sjekkforespørsel],\"<=\"&E$4)","v":{"v":0,"d":"kr 0.00"}},{"$f":"SUMIFS(ItemizedExpenses[Sjekkbeløp],ItemizedExpenses[Finanskode],MonthlyExpensesSummary[[#This Row],[Finanskode]],ItemizedExpenses[Fakturadato],\">=\"&F$3,ItemizedExpenses[Fakturadato],\"<=\"&F$4)+SUMIFS(Annet[Sjekkbeløp],Annet[Finanskode],MonthlyExpensesSummary[[#This Row],[Finanskode]],Annet[Dato for sjekkforespørsel],\">=\"&DATEVALUE(\" 1. \"&MonthlyExpensesSummary[[#Headers],[Mars]]&_ÅR),Annet[Dato for sjekkforespørsel],\"<=\"&F$4)","v":{"v":0,"d":"kr 0.00"}},{"$f":"SUMIFS(ItemizedExpenses[Sjekkbeløp],ItemizedExpenses[Finanskode],MonthlyExpensesSummary[[#This Row],[Finanskode]],ItemizedExpenses[Fakturadato],\">=\"&G$3,ItemizedExpenses[Fakturadato],\"<=\"&G$4)+SUMIFS(Annet[Sjekkbeløp],Annet[Finanskode],MonthlyExpensesSummary[[#This Row],[Finanskode]],Annet[Dato for sjekkforespørsel],\">=\"&DATEVALUE(\" 1. \"&MonthlyExpensesSummary[[#Headers],[April]]&_ÅR),Annet[Dato for sjekkforespørsel],\"<=\"&G$4)","v":{"v":0,"d":"kr 0.00"}},{"$f":"SUMIFS(ItemizedExpenses[Sjekkbeløp],ItemizedExpenses[Finanskode],MonthlyExpensesSummary[[#This Row],[Finanskode]],ItemizedExpenses[Fakturadato],\">=\"&H$3,ItemizedExpenses[Fakturadato],\"<=\"&H$4)+SUMIFS(Annet[Sjekkbeløp],Annet[Finanskode],MonthlyExpensesSummary[[#This Row],[Finanskode]],Annet[Dato for sjekkforespørsel],\">=\"&DATEVALUE(\" 1. \"&MonthlyExpensesSummary[[#Headers],[Mai]]&_ÅR),Annet[Dato for sjekkforespørsel],\"<=\"&H$4)","v":{"v":0,"d":"kr 0.00"}},{"$f":"SUMIFS(ItemizedExpenses[Sjekkbeløp],ItemizedExpenses[Finanskode],MonthlyExpensesSummary[[#This Row],[Finanskode]],ItemizedExpenses[Fakturadato],\">=\"&I$3,ItemizedExpenses[Fakturadato],\"<=\"&I$4)+SUMIFS(Annet[Sjekkbeløp],Annet[Finanskode],MonthlyExpensesSummary[[#This Row],[Finanskode]],Annet[Dato for sjekkforespørsel],\">=\"&DATEVALUE(\" 1. \"&MonthlyExpensesSummary[[#Headers],[Juni]]&_ÅR),Annet[Dato for sjekkforespørsel],\"<=\"&I$4)","v":{"v":0,"d":"kr 0.00"}},{"$f":"SUMIFS(ItemizedExpenses[Sjekkbeløp],ItemizedExpenses[Finanskode],MonthlyExpensesSummary[[#This Row],[Finanskode]],ItemizedExpenses[Fakturadato],\">=\"&J$3,ItemizedExpenses[Fakturadato],\"<=\"&J$4)+SUMIFS(Annet[Sjekkbeløp],Annet[Finanskode],MonthlyExpensesSummary[[#This Row],[Finanskode]],Annet[Dato for sjekkforespørsel],\">=\"&DATEVALUE(\" 1. \"&MonthlyExpensesSummary[[#Headers],[Juli]]&_ÅR),Annet[Dato for sjekkforespørsel],\"<=\"&J$4)","v":{"v":0,"d":"kr 0.00"}},{"$f":"SUMIFS(ItemizedExpenses[Sjekkbeløp],ItemizedExpenses[Finanskode],MonthlyExpensesSummary[[#This Row],[Finanskode]],ItemizedExpenses[Fakturadato],\">=\"&K$3,ItemizedExpenses[Fakturadato],\"<=\"&K$4)+SUMIFS(Annet[Sjekkbeløp],Annet[Finanskode],MonthlyExpensesSummary[[#This Row],[Finanskode]],Annet[Dato for sjekkforespørsel],\">=\"&DATEVALUE(\" 1. \"&MonthlyExpensesSummary[[#Headers],[August]]&_ÅR),Annet[Dato for sjekkforespørsel],\"<=\"&K$4)","v":{"v":0,"d":"kr 0.00"}},{"$f":"SUMIFS(ItemizedExpenses[Sjekkbeløp],ItemizedExpenses[Finanskode],MonthlyExpensesSummary[[#This Row],[Finanskode]],ItemizedExpenses[Fakturadato],\">=\"&L$3,ItemizedExpenses[Fakturadato],\"<=\"&L$4)+SUMIFS(Annet[Sjekkbeløp],Annet[Finanskode],MonthlyExpensesSummary[[#This Row],[Finanskode]],Annet[Dato for sjekkforespørsel],\">=\"&DATEVALUE(\" 1. \"&MonthlyExpensesSummary[[#Headers],[September]]&_ÅR),Annet[Dato for sjekkforespørsel],\"<=\"&L$4)","v":{"v":0,"d":"kr 0.00"}},{"$f":"SUMIFS(ItemizedExpenses[Sjekkbeløp],ItemizedExpenses[Finanskode],MonthlyExpensesSummary[[#This Row],[Finanskode]],ItemizedExpenses[Fakturadato],\">=\"&M$3,ItemizedExpenses[Fakturadato],\"<=\"&M$4)+SUMIFS(Annet[Sjekkbeløp],Annet[Finanskode],MonthlyExpensesSummary[[#This Row],[Finanskode]],Annet[Dato for sjekkforespørsel],\">=\"&DATEVALUE(\" 1. \"&MonthlyExpensesSummary[[#Headers],[Oktober]]&_ÅR),Annet[Dato for sjekkforespørsel],\"<=\"&M$4)","v":{"v":0,"d":"kr 0.00"}},{"$f":"SUMIFS(ItemizedExpenses[Sjekkbeløp],ItemizedExpenses[Finanskode],MonthlyExpensesSummary[[#This Row],[Finanskode]],ItemizedExpenses[Fakturadato],\">=\"&N$3,ItemizedExpenses[Fakturadato],\"<=\"&N$4)+SUMIFS(Annet[Sjekkbeløp],Annet[Finanskode],MonthlyExpensesSummary[[#This Row],[Finanskode]],Annet[Dato for sjekkforespørsel],\">=\"&DATEVALUE(\" 1. \"&MonthlyExpensesSummary[[#Headers],[November]]&_ÅR),Annet[Dato for sjekkforespørsel],\"<=\"&N$4)","v":{"v":0,"d":"kr 0.00"}},{"$f":"SUMIFS(ItemizedExpenses[Sjekkbeløp],ItemizedExpenses[Finanskode],MonthlyExpensesSummary[[#This Row],[Finanskode]],ItemizedExpenses[Fakturadato],\">=\"&O$3,ItemizedExpenses[Fakturadato],\"<=\"&O$4)+SUMIFS(Annet[Sjekkbeløp],Annet[Finanskode],MonthlyExpensesSummary[[#This Row],[Finanskode]],Annet[Dato for sjekkforespørsel],\">=\"&DATEVALUE(\" 1. \"&MonthlyExpensesSummary[[#Headers],[Desember]]&_ÅR),Annet[Dato for sjekkforespørsel],\"<=\"&O$4)","v":{"v":0,"d":"kr 0.00"}},{"$f":"SUM(MonthlyExpensesSummary[[#This Row],[Januar]:[Desember]])","v":{"v":0,"d":"kr 0.00"}}]
[null,2000,"Kontorrekvisita",{"$f":"SUMIFS(ItemizedExpenses[Sjekkbeløp],ItemizedExpenses[Finanskode],MonthlyExpensesSummary[[#This Row],[Finanskode]],ItemizedExpenses[Fakturadato],\">=\"&D$3,ItemizedExpenses[Fakturadato],\"<=\"&D$4)+SUMIFS(Annet[Sjekkbeløp],Annet[Finanskode],MonthlyExpensesSummary[[#This Row],[Finanskode]],Annet[Dato for sjekkforespørsel],\">=\"&DATEVALUE(\" 1. \"&MonthlyExpensesSummary[[#Headers],[Januar]]&_ÅR),Annet[Dato for sjekkforespørsel],\"<=\"&D$4)","v":{"v":0,"d":"kr 0.00"}},{"$f":"SUMIFS(ItemizedExpenses[Sjekkbeløp],ItemizedExpenses[Finanskode],MonthlyExpensesSummary[[#This Row],[Finanskode]],ItemizedExpenses[Fakturadato],\">=\"&E$3,ItemizedExpenses[Fakturadato],\"<=\"&E$4)+SUMIFS(Annet[Sjekkbeløp],Annet[Finanskode],MonthlyExpensesSummary[[#This Row],[Finanskode]],Annet[Dato for sjekkforespørsel],\">=\"&DATEVALUE(\" 1. \"&MonthlyExpensesSummary[[#Headers],[Februar]]&_ÅR),Annet[Dato for sjekkforespørsel],\"<=\"&E$4)","v":{"v":0,"d":"kr 0.00"}},{"$f":"SUMIFS(ItemizedExpenses[Sjekkbeløp],ItemizedExpenses[Finanskode],MonthlyExpensesSummary[[#This Row],[Finanskode]],ItemizedExpenses[Fakturadato],\">=\"&F$3,ItemizedExpenses[Fakturadato],\"<=\"&F$4)+SUMIFS(Annet[Sjekkbeløp],Annet[Finanskode],MonthlyExpensesSummary[[#This Row],[Finanskode]],Annet[Dato for sjekkforespørsel],\">=\"&DATEVALUE(\" 1. \"&MonthlyExpensesSummary[[#Headers],[Mars]]&_ÅR),Annet[Dato for sjekkforespørsel],\"<=\"&F$4)","v":{"v":0,"d":"kr 0.00"}},{"$f":"SUMIFS(ItemizedExpenses[Sjekkbeløp],ItemizedExpenses[Finanskode],MonthlyExpensesSummary[[#This Row],[Finanskode]],ItemizedExpenses[Fakturadato],\">=\"&G$3,ItemizedExpenses[Fakturadato],\"<=\"&G$4)+SUMIFS(Annet[Sjekkbeløp],Annet[Finanskode],MonthlyExpensesSummary[[#This Row],[Finanskode]],Annet[Dato for sjekkforespørsel],\">=\"&DATEVALUE(\" 1. \"&MonthlyExpensesSummary[[#Headers],[April]]&_ÅR),Annet[Dato for sjekkforespørsel],\"<=\"&G$4)","v":{"v":0,"d":"kr 0.00"}},{"$f":"SUMIFS(ItemizedExpenses[Sjekkbeløp],ItemizedExpenses[Finanskode],MonthlyExpensesSummary[[#This Row],[Finanskode]],ItemizedExpenses[Fakturadato],\">=\"&H$3,ItemizedExpenses[Fakturadato],\"<=\"&H$4)+SUMIFS(Annet[Sjekkbeløp],Annet[Finanskode],MonthlyExpensesSummary[[#This Row],[Finanskode]],Annet[Dato for sjekkforespørsel],\">=\"&DATEVALUE(\" 1. \"&MonthlyExpensesSummary[[#Headers],[Mai]]&_ÅR),Annet[Dato for sjekkforespørsel],\"<=\"&H$4)","v":{"v":0,"d":"kr 0.00"}},{"$f":"SUMIFS(ItemizedExpenses[Sjekkbeløp],ItemizedExpenses[Finanskode],MonthlyExpensesSummary[[#This Row],[Finanskode]],ItemizedExpenses[Fakturadato],\">=\"&I$3,ItemizedExpenses[Fakturadato],\"<=\"&I$4)+SUMIFS(Annet[Sjekkbeløp],Annet[Finanskode],MonthlyExpensesSummary[[#This Row],[Finanskode]],Annet[Dato for sjekkforespørsel],\">=\"&DATEVALUE(\" 1. \"&MonthlyExpensesSummary[[#Headers],[Juni]]&_ÅR),Annet[Dato for sjekkforespørsel],\"<=\"&I$4)","v":{"v":0,"d":"kr 0.00"}},{"$f":"SUMIFS(ItemizedExpenses[Sjekkbeløp],ItemizedExpenses[Finanskode],MonthlyExpensesSummary[[#This Row],[Finanskode]],ItemizedExpenses[Fakturadato],\">=\"&J$3,ItemizedExpenses[Fakturadato],\"<=\"&J$4)+SUMIFS(Annet[Sjekkbeløp],Annet[Finanskode],MonthlyExpensesSummary[[#This Row],[Finanskode]],Annet[Dato for sjekkforespørsel],\">=\"&DATEVALUE(\" 1. \"&MonthlyExpensesSummary[[#Headers],[Juli]]&_ÅR),Annet[Dato for sjekkforespørsel],\"<=\"&J$4)","v":{"v":0,"d":"kr 0.00"}},{"$f":"SUMIFS(ItemizedExpenses[Sjekkbeløp],ItemizedExpenses[Finanskode],MonthlyExpensesSummary[[#This Row],[Finanskode]],ItemizedExpenses[Fakturadato],\">=\"&K$3,ItemizedExpenses[Fakturadato],\"<=\"&K$4)+SUMIFS(Annet[Sjekkbeløp],Annet[Finanskode],MonthlyExpensesSummary[[#This Row],[Finanskode]],Annet[Dato for sjekkforespørsel],\">=\"&DATEVALUE(\" 1. \"&MonthlyExpensesSummary[[#Headers],[August]]&_ÅR),Annet[Dato for sjekkforespørsel],\"<=\"&K$4)","v":{"v":0,"d":"kr 0.00"}},{"$f":"SUMIFS(ItemizedExpenses[Sjekkbeløp],ItemizedExpenses[Finanskode],MonthlyExpensesSummary[[#This Row],[Finanskode]],ItemizedExpenses[Fakturadato],\">=\"&L$3,ItemizedExpenses[Fakturadato],\"<=\"&L$4)+SUMIFS(Annet[Sjekkbeløp],Annet[Finanskode],MonthlyExpensesSummary[[#This Row],[Finanskode]],Annet[Dato for sjekkforespørsel],\">=\"&DATEVALUE(\" 1. \"&MonthlyExpensesSummary[[#Headers],[September]]&_ÅR),Annet[Dato for sjekkforespørsel],\"<=\"&L$4)","v":{"v":0,"d":"kr 0.00"}},{"$f":"SUMIFS(ItemizedExpenses[Sjekkbeløp],ItemizedExpenses[Finanskode],MonthlyExpensesSummary[[#This Row],[Finanskode]],ItemizedExpenses[Fakturadato],\">=\"&M$3,ItemizedExpenses[Fakturadato],\"<=\"&M$4)+SUMIFS(Annet[Sjekkbeløp],Annet[Finanskode],MonthlyExpensesSummary[[#This Row],[Finanskode]],Annet[Dato for sjekkforespørsel],\">=\"&DATEVALUE(\" 1. \"&MonthlyExpensesSummary[[#Headers],[Oktober]]&_ÅR),Annet[Dato for sjekkforespørsel],\"<=\"&M$4)","v":{"v":0,"d":"kr 0.00"}},{"$f":"SUMIFS(ItemizedExpenses[Sjekkbeløp],ItemizedExpenses[Finanskode],MonthlyExpensesSummary[[#This Row],[Finanskode]],ItemizedExpenses[Fakturadato],\">=\"&N$3,ItemizedExpenses[Fakturadato],\"<=\"&N$4)+SUMIFS(Annet[Sjekkbeløp],Annet[Finanskode],MonthlyExpensesSummary[[#This Row],[Finanskode]],Annet[Dato for sjekkforespørsel],\">=\"&DATEVALUE(\" 1. \"&MonthlyExpensesSummary[[#Headers],[November]]&_ÅR),Annet[Dato for sjekkforespørsel],\"<=\"&N$4)","v":{"v":0,"d":"kr 0.00"}},{"$f":"SUMIFS(ItemizedExpenses[Sjekkbeløp],ItemizedExpenses[Finanskode],MonthlyExpensesSummary[[#This Row],[Finanskode]],ItemizedExpenses[Fakturadato],\">=\"&O$3,ItemizedExpenses[Fakturadato],\"<=\"&O$4)+SUMIFS(Annet[Sjekkbeløp],Annet[Finanskode],MonthlyExpensesSummary[[#This Row],[Finanskode]],Annet[Dato for sjekkforespørsel],\">=\"&DATEVALUE(\" 1. \"&MonthlyExpensesSummary[[#Headers],[Desember]]&_ÅR),Annet[Dato for sjekkforespørsel],\"<=\"&O$4)","v":{"v":0,"d":"kr 0.00"}},{"$f":"SUM(MonthlyExpensesSummary[[#This Row],[Januar]:[Desember]])","v":{"v":0,"d":"kr 0.00"}}]
[null,3000,"Skrivere",{"$f":"SUMIFS(ItemizedExpenses[Sjekkbeløp],ItemizedExpenses[Finanskode],MonthlyExpensesSummary[[#This Row],[Finanskode]],ItemizedExpenses[Fakturadato],\">=\"&D$3,ItemizedExpenses[Fakturadato],\"<=\"&D$4)+SUMIFS(Annet[Sjekkbeløp],Annet[Finanskode],MonthlyExpensesSummary[[#This Row],[Finanskode]],Annet[Dato for sjekkforespørsel],\">=\"&DATEVALUE(\" 1. \"&MonthlyExpensesSummary[[#Headers],[Januar]]&_ÅR),Annet[Dato for sjekkforespørsel],\"<=\"&D$4)","v":{"v":0,"d":"kr 0.00"}},{"$f":"SUMIFS(ItemizedExpenses[Sjekkbeløp],ItemizedExpenses[Finanskode],MonthlyExpensesSummary[[#This Row],[Finanskode]],ItemizedExpenses[Fakturadato],\">=\"&E$3,ItemizedExpenses[Fakturadato],\"<=\"&E$4)+SUMIFS(Annet[Sjekkbeløp],Annet[Finanskode],MonthlyExpensesSummary[[#This Row],[Finanskode]],Annet[Dato for sjekkforespørsel],\">=\"&DATEVALUE(\" 1. \"&MonthlyExpensesSummary[[#Headers],[Februar]]&_ÅR),Annet[Dato for sjekkforespørsel],\"<=\"&E$4)","v":{"v":0,"d":"kr 0.00"}},{"$f":"SUMIFS(ItemizedExpenses[Sjekkbeløp],ItemizedExpenses[Finanskode],MonthlyExpensesSummary[[#This Row],[Finanskode]],ItemizedExpenses[Fakturadato],\">=\"&F$3,ItemizedExpenses[Fakturadato],\"<=\"&F$4)+SUMIFS(Annet[Sjekkbeløp],Annet[Finanskode],MonthlyExpensesSummary[[#This Row],[Finanskode]],Annet[Dato for sjekkforespørsel],\">=\"&DATEVALUE(\" 1. \"&MonthlyExpensesSummary[[#Headers],[Mars]]&_ÅR),Annet[Dato for sjekkforespørsel],\"<=\"&F$4)","v":{"v":0,"d":"kr 0.00"}},{"$f":"SUMIFS(ItemizedExpenses[Sjekkbeløp],ItemizedExpenses[Finanskode],MonthlyExpensesSummary[[#This Row],[Finanskode]],ItemizedExpenses[Fakturadato],\">=\"&G$3,ItemizedExpenses[Fakturadato],\"<=\"&G$4)+SUMIFS(Annet[Sjekkbeløp],Annet[Finanskode],MonthlyExpensesSummary[[#This Row],[Finanskode]],Annet[Dato for sjekkforespørsel],\">=\"&DATEVALUE(\" 1. \"&MonthlyExpensesSummary[[#Headers],[April]]&_ÅR),Annet[Dato for sjekkforespørsel],\"<=\"&G$4)","v":{"v":0,"d":"kr 0.00"}},{"$f":"SUMIFS(ItemizedExpenses[Sjekkbeløp],ItemizedExpenses[Finanskode],MonthlyExpensesSummary[[#This Row],[Finanskode]],ItemizedExpenses[Fakturadato],\">=\"&H$3,ItemizedExpenses[Fakturadato],\"<=\"&H$4)+SUMIFS(Annet[Sjekkbeløp],Annet[Finanskode],MonthlyExpensesSummary[[#This Row],[Finanskode]],Annet[Dato for sjekkforespørsel],\">=\"&DATEVALUE(\" 1. \"&MonthlyExpensesSummary[[#Headers],[Mai]]&_ÅR),Annet[Dato for sjekkforespørsel],\"<=\"&H$4)","v":{"v":0,"d":"kr 0.00"}},{"$f":"SUMIFS(ItemizedExpenses[Sjekkbeløp],ItemizedExpenses[Finanskode],MonthlyExpensesSummary[[#This Row],[Finanskode]],ItemizedExpenses[Fakturadato],\">=\"&I$3,ItemizedExpenses[Fakturadato],\"<=\"&I$4)+SUMIFS(Annet[Sjekkbeløp],Annet[Finanskode],MonthlyExpensesSummary[[#This Row],[Finanskode]],Annet[Dato for sjekkforespørsel],\">=\"&DATEVALUE(\" 1. \"&MonthlyExpensesSummary[[#Headers],[Juni]]&_ÅR),Annet[Dato for sjekkforespørsel],\"<=\"&I$4)","v":{"v":0,"d":"kr 0.00"}},{"$f":"SUMIFS(ItemizedExpenses[Sjekkbeløp],ItemizedExpenses[Finanskode],MonthlyExpensesSummary[[#This Row],[Finanskode]],ItemizedExpenses[Fakturadato],\">=\"&J$3,ItemizedExpenses[Fakturadato],\"<=\"&J$4)+SUMIFS(Annet[Sjekkbeløp],Annet[Finanskode],MonthlyExpensesSummary[[#This Row],[Finanskode]],Annet[Dato for sjekkforespørsel],\">=\"&DATEVALUE(\" 1. \"&MonthlyExpensesSummary[[#Headers],[Juli]]&_ÅR),Annet[Dato for sjekkforespørsel],\"<=\"&J$4)","v":{"v":0,"d":"kr 0.00"}},{"$f":"SUMIFS(ItemizedExpenses[Sjekkbeløp],ItemizedExpenses[Finanskode],MonthlyExpensesSummary[[#This Row],[Finanskode]],ItemizedExpenses[Fakturadato],\">=\"&K$3,ItemizedExpenses[Fakturadato],\"<=\"&K$4)+SUMIFS(Annet[Sjekkbeløp],Annet[Finanskode],MonthlyExpensesSummary[[#This Row],[Finanskode]],Annet[Dato for sjekkforespørsel],\">=\"&DATEVALUE(\" 1. \"&MonthlyExpensesSummary[[#Headers],[August]]&_ÅR),Annet[Dato for sjekkforespørsel],\"<=\"&K$4)","v":{"v":0,"d":"kr 0.00"}},{"$f":"SUMIFS(ItemizedExpenses[Sjekkbeløp],ItemizedExpenses[Finanskode],MonthlyExpensesSummary[[#This Row],[Finanskode]],ItemizedExpenses[Fakturadato],\">=\"&L$3,ItemizedExpenses[Fakturadato],\"<=\"&L$4)+SUMIFS(Annet[Sjekkbeløp],Annet[Finanskode],MonthlyExpensesSummary[[#This Row],[Finanskode]],Annet[Dato for sjekkforespørsel],\">=\"&DATEVALUE(\" 1. \"&MonthlyExpensesSummary[[#Headers],[September]]&_ÅR),Annet[Dato for sjekkforespørsel],\"<=\"&L$4)","v":{"v":0,"d":"kr 0.00"}},{"$f":"SUMIFS(ItemizedExpenses[Sjekkbeløp],ItemizedExpenses[Finanskode],MonthlyExpensesSummary[[#This Row],[Finanskode]],ItemizedExpenses[Fakturadato],\">=\"&M$3,ItemizedExpenses[Fakturadato],\"<=\"&M$4)+SUMIFS(Annet[Sjekkbeløp],Annet[Finanskode],MonthlyExpensesSummary[[#This Row],[Finanskode]],Annet[Dato for sjekkforespørsel],\">=\"&DATEVALUE(\" 1. \"&MonthlyExpensesSummary[[#Headers],[Oktober]]&_ÅR),Annet[Dato for sjekkforespørsel],\"<=\"&M$4)","v":{"v":0,"d":"kr 0.00"}},{"$f":"SUMIFS(ItemizedExpenses[Sjekkbeløp],ItemizedExpenses[Finanskode],MonthlyExpensesSummary[[#This Row],[Finanskode]],ItemizedExpenses[Fakturadato],\">=\"&N$3,ItemizedExpenses[Fakturadato],\"<=\"&N$4)+SUMIFS(Annet[Sjekkbeløp],Annet[Finanskode],MonthlyExpensesSummary[[#This Row],[Finanskode]],Annet[Dato for sjekkforespørsel],\">=\"&DATEVALUE(\" 1. \"&MonthlyExpensesSummary[[#Headers],[November]]&_ÅR),Annet[Dato for sjekkforespørsel],\"<=\"&N$4)","v":{"v":0,"d":"kr 0.00"}},{"$f":"SUMIFS(ItemizedExpenses[Sjekkbeløp],ItemizedExpenses[Finanskode],MonthlyExpensesSummary[[#This Row],[Finanskode]],ItemizedExpenses[Fakturadato],\">=\"&O$3,ItemizedExpenses[Fakturadato],\"<=\"&O$4)+SUMIFS(Annet[Sjekkbeløp],Annet[Finanskode],MonthlyExpensesSummary[[#This Row],[Finanskode]],Annet[Dato for sjekkforespørsel],\">=\"&DATEVALUE(\" 1. \"&MonthlyExpensesSummary[[#Headers],[Desember]]&_ÅR),Annet[Dato for sjekkforespørsel],\"<=\"&O$4)","v":{"v":0,"d":"kr 0.00"}},{"$f":"SUM(MonthlyExpensesSummary[[#This Row],[Januar]:[Desember]])","v":{"v":0,"d":"kr 0.00"}}]
[null,4000,"Serverkostnader",{"$f":"SUMIFS(ItemizedExpenses[Sjekkbeløp],ItemizedExpenses[Finanskode],MonthlyExpensesSummary[[#This Row],[Finanskode]],ItemizedExpenses[Fakturadato],\">=\"&D$3,ItemizedExpenses[Fakturadato],\"<=\"&D$4)+SUMIFS(Annet[Sjekkbeløp],Annet[Finanskode],MonthlyExpensesSummary[[#This Row],[Finanskode]],Annet[Dato for sjekkforespørsel],\">=\"&DATEVALUE(\" 1. \"&MonthlyExpensesSummary[[#Headers],[Januar]]&_ÅR),Annet[Dato for sjekkforespørsel],\"<=\"&D$4)","v":{"v":0,"d":"kr 0.00"}},{"$f":"SUMIFS(ItemizedExpenses[Sjekkbeløp],ItemizedExpenses[Finanskode],MonthlyExpensesSummary[[#This Row],[Finanskode]],ItemizedExpenses[Fakturadato],\">=\"&E$3,ItemizedExpenses[Fakturadato],\"<=\"&E$4)+SUMIFS(Annet[Sjekkbeløp],Annet[Finanskode],MonthlyExpensesSummary[[#This Row],[Finanskode]],Annet[Dato for sjekkforespørsel],\">=\"&DATEVALUE(\" 1. \"&MonthlyExpensesSummary[[#Headers],[Februar]]&_ÅR),Annet[Dato for sjekkforespørsel],\"<=\"&E$4)","v":{"v":0,"d":"kr 0.00"}},{"$f":"SUMIFS(ItemizedExpenses[Sjekkbeløp],ItemizedExpenses[Finanskode],MonthlyExpensesSummary[[#This Row],[Finanskode]],ItemizedExpenses[Fakturadato],\">=\"&F$3,ItemizedExpenses[Fakturadato],\"<=\"&F$4)+SUMIFS(Annet[Sjekkbeløp],Annet[Finanskode],MonthlyExpensesSummary[[#This Row],[Finanskode]],Annet[Dato for sjekkforespørsel],\">=\"&DATEVALUE(\" 1. \"&MonthlyExpensesSummary[[#Headers],[Mars]]&_ÅR),Annet[Dato for sjekkforespørsel],\"<=\"&F$4)","v":{"v":0,"d":"kr 0.00"}},{"$f":"SUMIFS(ItemizedExpenses[Sjekkbeløp],ItemizedExpenses[Finanskode],MonthlyExpensesSummary[[#This Row],[Finanskode]],ItemizedExpenses[Fakturadato],\">=\"&G$3,ItemizedExpenses[Fakturadato],\"<=\"&G$4)+SUMIFS(Annet[Sjekkbeløp],Annet[Finanskode],MonthlyExpensesSummary[[#This Row],[Finanskode]],Annet[Dato for sjekkforespørsel],\">=\"&DATEVALUE(\" 1. \"&MonthlyExpensesSummary[[#Headers],[April]]&_ÅR),Annet[Dato for sjekkforespørsel],\"<=\"&G$4)","v":{"v":0,"d":"kr 0.00"}},{"$f":"SUMIFS(ItemizedExpenses[Sjekkbeløp],ItemizedExpenses[Finanskode],MonthlyExpensesSummary[[#This Row],[Finanskode]],ItemizedExpenses[Fakturadato],\">=\"&H$3,ItemizedExpenses[Fakturadato],\"<=\"&H$4)+SUMIFS(Annet[Sjekkbeløp],Annet[Finanskode],MonthlyExpensesSummary[[#This Row],[Finanskode]],Annet[Dato for sjekkforespørsel],\">=\"&DATEVALUE(\" 1. \"&MonthlyExpensesSummary[[#Headers],[Mai]]&_ÅR),Annet[Dato for sjekkforespørsel],\"<=\"&H$4)","v":{"v":0,"d":"kr 0.00"}},{"$f":"SUMIFS(ItemizedExpenses[Sjekkbeløp],ItemizedExpenses[Finanskode],MonthlyExpensesSummary[[#This Row],[Finanskode]],ItemizedExpenses[Fakturadato],\">=\"&I$3,ItemizedExpenses[Fakturadato],\"<=\"&I$4)+SUMIFS(Annet[Sjekkbeløp],Annet[Finanskode],MonthlyExpensesSummary[[#This Row],[Finanskode]],Annet[Dato for sjekkforespørsel],\">=\"&DATEVALUE(\" 1. \"&MonthlyExpensesSummary[[#Headers],[Juni]]&_ÅR),Annet[Dato for sjekkforespørsel],\"<=\"&I$4)","v":{"v":0,"d":"kr 0.00"}},{"$f":"SUMIFS(ItemizedExpenses[Sjekkbeløp],ItemizedExpenses[Finanskode],MonthlyExpensesSummary[[#This Row],[Finanskode]],ItemizedExpenses[Fakturadato],\">=\"&J$3,ItemizedExpenses[Fakturadato],\"<=\"&J$4)+SUMIFS(Annet[Sjekkbeløp],Annet[Finanskode],MonthlyExpensesSummary[[#This Row],[Finanskode]],Annet[Dato for sjekkforespørsel],\">=\"&DATEVALUE(\" 1. \"&MonthlyExpensesSummary[[#Headers],[Juli]]&_ÅR),Annet[Dato for sjekkforespørsel],\"<=\"&J$4)","v":{"v":0,"d":"kr 0.00"}},{"$f":"SUMIFS(ItemizedExpenses[Sjekkbeløp],ItemizedExpenses[Finanskode],MonthlyExpensesSummary[[#This Row],[Finanskode]],ItemizedExpenses[Fakturadato],\">=\"&K$3,ItemizedExpenses[Fakturadato],\"<=\"&K$4)+SUMIFS(Annet[Sjekkbeløp],Annet[Finanskode],MonthlyExpensesSummary[[#This Row],[Finanskode]],Annet[Dato for sjekkforespørsel],\">=\"&DATEVALUE(\" 1. \"&MonthlyExpensesSummary[[#Headers],[August]]&_ÅR),Annet[Dato for sjekkforespørsel],\"<=\"&K$4)","v":{"v":0,"d":"kr 0.00"}},{"$f":"SUMIFS(ItemizedExpenses[Sjekkbeløp],ItemizedExpenses[Finanskode],MonthlyExpensesSummary[[#This Row],[Finanskode]],ItemizedExpenses[Fakturadato],\">=\"&L$3,ItemizedExpenses[Fakturadato],\"<=\"&L$4)+SUMIFS(Annet[Sjekkbeløp],Annet[Finanskode],MonthlyExpensesSummary[[#This Row],[Finanskode]],Annet[Dato for sjekkforespørsel],\">=\"&DATEVALUE(\" 1. \"&MonthlyExpensesSummary[[#Headers],[September]]&_ÅR),Annet[Dato for sjekkforespørsel],\"<=\"&L$4)","v":{"v":0,"d":"kr 0.00"}},{"$f":"SUMIFS(ItemizedExpenses[Sjekkbeløp],ItemizedExpenses[Finanskode],MonthlyExpensesSummary[[#This Row],[Finanskode]],ItemizedExpenses[Fakturadato],\">=\"&M$3,ItemizedExpenses[Fakturadato],\"<=\"&M$4)+SUMIFS(Annet[Sjekkbeløp],Annet[Finanskode],MonthlyExpensesSummary[[#This Row],[Finanskode]],Annet[Dato for sjekkforespørsel],\">=\"&DATEVALUE(\" 1. \"&MonthlyExpensesSummary[[#Headers],[Oktober]]&_ÅR),Annet[Dato for sjekkforespørsel],\"<=\"&M$4)","v":{"v":0,"d":"kr 0.00"}},{"$f":"SUMIFS(ItemizedExpenses[Sjekkbeløp],ItemizedExpenses[Finanskode],MonthlyExpensesSummary[[#This Row],[Finanskode]],ItemizedExpenses[Fakturadato],\">=\"&N$3,ItemizedExpenses[Fakturadato],\"<=\"&N$4)+SUMIFS(Annet[Sjekkbeløp],Annet[Finanskode],MonthlyExpensesSummary[[#This Row],[Finanskode]],Annet[Dato for sjekkforespørsel],\">=\"&DATEVALUE(\" 1. \"&MonthlyExpensesSummary[[#Headers],[November]]&_ÅR),Annet[Dato for sjekkforespørsel],\"<=\"&N$4)","v":{"v":0,"d":"kr 0.00"}},{"$f":"SUMIFS(ItemizedExpenses[Sjekkbeløp],ItemizedExpenses[Finanskode],MonthlyExpensesSummary[[#This Row],[Finanskode]],ItemizedExpenses[Fakturadato],\">=\"&O$3,ItemizedExpenses[Fakturadato],\"<=\"&O$4)+SUMIFS(Annet[Sjekkbeløp],Annet[Finanskode],MonthlyExpensesSummary[[#This Row],[Finanskode]],Annet[Dato for sjekkforespørsel],\">=\"&DATEVALUE(\" 1. \"&MonthlyExpensesSummary[[#Headers],[Desember]]&_ÅR),Annet[Dato for sjekkforespørsel],\"<=\"&O$4)","v":{"v":0,"d":"kr 0.00"}},{"$f":"SUM(MonthlyExpensesSummary[[#This Row],[Januar]:[Desember]])","v":{"v":0,"d":"kr 0.00"}}]
[null,5000,"Utstyr",{"$f":"SUMIFS(ItemizedExpenses[Sjekkbeløp],ItemizedExpenses[Finanskode],MonthlyExpensesSummary[[#This Row],[Finanskode]],ItemizedExpenses[Fakturadato],\">=\"&D$3,ItemizedExpenses[Fakturadato],\"<=\"&D$4)+SUMIFS(Annet[Sjekkbeløp],Annet[Finanskode],MonthlyExpensesSummary[[#This Row],[Finanskode]],Annet[Dato for sjekkforespørsel],\">=\"&DATEVALUE(\" 1. \"&MonthlyExpensesSummary[[#Headers],[Januar]]&_ÅR),Annet[Dato for sjekkforespørsel],\"<=\"&D$4)","v":{"v":0,"d":"kr 0.00"}},{"$f":"SUMIFS(ItemizedExpenses[Sjekkbeløp],ItemizedExpenses[Finanskode],MonthlyExpensesSummary[[#This Row],[Finanskode]],ItemizedExpenses[Fakturadato],\">=\"&E$3,ItemizedExpenses[Fakturadato],\"<=\"&E$4)+SUMIFS(Annet[Sjekkbeløp],Annet[Finanskode],MonthlyExpensesSummary[[#This Row],[Finanskode]],Annet[Dato for sjekkforespørsel],\">=\"&DATEVALUE(\" 1. \"&MonthlyExpensesSummary[[#Headers],[Februar]]&_ÅR),Annet[Dato for sjekkforespørsel],\"<=\"&E$4)","v":{"v":0,"d":"kr 0.00"}},{"$f":"SUMIFS(ItemizedExpenses[Sjekkbeløp],ItemizedExpenses[Finanskode],MonthlyExpensesSummary[[#This Row],[Finanskode]],ItemizedExpenses[Fakturadato],\">=\"&F$3,ItemizedExpenses[Fakturadato],\"<=\"&F$4)+SUMIFS(Annet[Sjekkbeløp],Annet[Finanskode],MonthlyExpensesSummary[[#This Row],[Finanskode]],Annet[Dato for sjekkforespørsel],\">=\"&DATEVALUE(\" 1. \"&MonthlyExpensesSummary[[#Headers],[Mars]]&_ÅR),Annet[Dato for sjekkforespørsel],\"<=\"&F$4)","v":{"v":0,"d":"kr 0.00"}},{"$f":"SUMIFS(ItemizedExpenses[Sjekkbeløp],ItemizedExpenses[Finanskode],MonthlyExpensesSummary[[#This Row],[Finanskode]],ItemizedExpenses[Fakturadato],\">=\"&G$3,ItemizedExpenses[Fakturadato],\"<=\"&G$4)+SUMIFS(Annet[Sjekkbeløp],Annet[Finanskode],MonthlyExpensesSummary[[#This Row],[Finanskode]],Annet[Dato for sjekkforespørsel],\">=\"&DATEVALUE(\" 1. \"&MonthlyExpensesSummary[[#Headers],[April]]&_ÅR),Annet[Dato for sjekkforespørsel],\"<=\"&G$4)","v":{"v":0,"d":"kr 0.00"}},{"$f":"SUMIFS(ItemizedExpenses[Sjekkbeløp],ItemizedExpenses[Finanskode],MonthlyExpensesSummary[[#This Row],[Finanskode]],ItemizedExpenses[Fakturadato],\">=\"&H$3,ItemizedExpenses[Fakturadato],\"<=\"&H$4)+SUMIFS(Annet[Sjekkbeløp],Annet[Finanskode],MonthlyExpensesSummary[[#This Row],[Finanskode]],Annet[Dato for sjekkforespørsel],\">=\"&DATEVALUE(\" 1. \"&MonthlyExpensesSummary[[#Headers],[Mai]]&_ÅR),Annet[Dato for sjekkforespørsel],\"<=\"&H$4)","v":{"v":0,"d":"kr 0.00"}},{"$f":"SUMIFS(ItemizedExpenses[Sjekkbeløp],ItemizedExpenses[Finanskode],MonthlyExpensesSummary[[#This Row],[Finanskode]],ItemizedExpenses[Fakturadato],\">=\"&I$3,ItemizedExpenses[Fakturadato],\"<=\"&I$4)+SUMIFS(Annet[Sjekkbeløp],Annet[Finanskode],MonthlyExpensesSummary[[#This Row],[Finanskode]],Annet[Dato for sjekkforespørsel],\">=\"&DATEVALUE(\" 1. \"&MonthlyExpensesSummary[[#Headers],[Juni]]&_ÅR),Annet[Dato for sjekkforespørsel],\"<=\"&I$4)","v":{"v":0,"d":"kr 0.00"}},{"$f":"SUMIFS(ItemizedExpenses[Sjekkbeløp],ItemizedExpenses[Finanskode],MonthlyExpensesSummary[[#This Row],[Finanskode]],ItemizedExpenses[Fakturadato],\">=\"&J$3,ItemizedExpenses[Fakturadato],\"<=\"&J$4)+SUMIFS(Annet[Sjekkbeløp],Annet[Finanskode],MonthlyExpensesSummary[[#This Row],[Finanskode]],Annet[Dato for sjekkforespørsel],\">=\"&DATEVALUE(\" 1. \"&MonthlyExpensesSummary[[#Headers],[Juli]]&_ÅR),Annet[Dato for sjekkforespørsel],\"<=\"&J$4)","v":{"v":0,"d":"kr 0.00"}},{"$f":"SUMIFS(ItemizedExpenses[Sjekkbeløp],ItemizedExpenses[Finanskode],MonthlyExpensesSummary[[#This Row],[Finanskode]],ItemizedExpenses[Fakturadato],\">=\"&K$3,ItemizedExpenses[Fakturadato],\"<=\"&K$4)+SUMIFS(Annet[Sjekkbeløp],Annet[Finanskode],MonthlyExpensesSummary[[#This Row],[Finanskode]],Annet[Dato for sjekkforespørsel],\">=\"&DATEVALUE(\" 1. \"&MonthlyExpensesSummary[[#Headers],[August]]&_ÅR),Annet[Dato for sjekkforespørsel],\"<=\"&K$4)","v":{"v":0,"d":"kr 0.00"}},{"$f":"SUMIFS(ItemizedExpenses[Sjekkbeløp],ItemizedExpenses[Finanskode],MonthlyExpensesSummary[[#This Row],[Finanskode]],ItemizedExpenses[Fakturadato],\">=\"&L$3,ItemizedExpenses[Fakturadato],\"<=\"&L$4)+SUMIFS(Annet[Sjekkbeløp],Annet[Finanskode],MonthlyExpensesSummary[[#This Row],[Finanskode]],Annet[Dato for sjekkforespørsel],\">=\"&DATEVALUE(\" 1. \"&MonthlyExpensesSummary[[#Headers],[September]]&_ÅR),Annet[Dato for sjekkforespørsel],\"<=\"&L$4)","v":{"v":0,"d":"kr 0.00"}},{"$f":"SUMIFS(ItemizedExpenses[Sjekkbeløp],ItemizedExpenses[Finanskode],MonthlyExpensesSummary[[#This Row],[Finanskode]],ItemizedExpenses[Fakturadato],\">=\"&M$3,ItemizedExpenses[Fakturadato],\"<=\"&M$4)+SUMIFS(Annet[Sjekkbeløp],Annet[Finanskode],MonthlyExpensesSummary[[#This Row],[Finanskode]],Annet[Dato for sjekkforespørsel],\">=\"&DATEVALUE(\" 1. \"&MonthlyExpensesSummary[[#Headers],[Oktober]]&_ÅR),Annet[Dato for sjekkforespørsel],\"<=\"&M$4)","v":{"v":0,"d":"kr 0.00"}},{"$f":"SUMIFS(ItemizedExpenses[Sjekkbeløp],ItemizedExpenses[Finanskode],MonthlyExpensesSummary[[#This Row],[Finanskode]],ItemizedExpenses[Fakturadato],\">=\"&N$3,ItemizedExpenses[Fakturadato],\"<=\"&N$4)+SUMIFS(Annet[Sjekkbeløp],Annet[Finanskode],MonthlyExpensesSummary[[#This Row],[Finanskode]],Annet[Dato for sjekkforespørsel],\">=\"&DATEVALUE(\" 1. \"&MonthlyExpensesSummary[[#Headers],[November]]&_ÅR),Annet[Dato for sjekkforespørsel],\"<=\"&N$4)","v":{"v":0,"d":"kr 0.00"}},{"$f":"SUMIFS(ItemizedExpenses[Sjekkbeløp],ItemizedExpenses[Finanskode],MonthlyExpensesSummary[[#This Row],[Finanskode]],ItemizedExpenses[Fakturadato],\">=\"&O$3,ItemizedExpenses[Fakturadato],\"<=\"&O$4)+SUMIFS(Annet[Sjekkbeløp],Annet[Finanskode],MonthlyExpensesSummary[[#This Row],[Finanskode]],Annet[Dato for sjekkforespørsel],\">=\"&DATEVALUE(\" 1. \"&MonthlyExpensesSummary[[#Headers],[Desember]]&_ÅR),Annet[Dato for sjekkforespørsel],\"<=\"&O$4)","v":{"v":0,"d":"kr 0.00"}},{"$f":"SUM(MonthlyExpensesSummary[[#This Row],[Januar]:[Desember]])","v":{"v":0,"d":"kr 0.00"}}]
[null,6000,"Klientutgifter",{"$f":"SUMIFS(ItemizedExpenses[Sjekkbeløp],ItemizedExpenses[Finanskode],MonthlyExpensesSummary[[#This Row],[Finanskode]],ItemizedExpenses[Fakturadato],\">=\"&D$3,ItemizedExpenses[Fakturadato],\"<=\"&D$4)+SUMIFS(Annet[Sjekkbeløp],Annet[Finanskode],MonthlyExpensesSummary[[#This Row],[Finanskode]],Annet[Dato for sjekkforespørsel],\">=\"&DATEVALUE(\" 1. \"&MonthlyExpensesSummary[[#Headers],[Januar]]&_ÅR),Annet[Dato for sjekkforespørsel],\"<=\"&D$4)","v":{"v":0,"d":"kr 0.00"}},{"$f":"SUMIFS(ItemizedExpenses[Sjekkbeløp],ItemizedExpenses[Finanskode],MonthlyExpensesSummary[[#This Row],[Finanskode]],ItemizedExpenses[Fakturadato],\">=\"&E$3,ItemizedExpenses[Fakturadato],\"<=\"&E$4)+SUMIFS(Annet[Sjekkbeløp],Annet[Finanskode],MonthlyExpensesSummary[[#This Row],[Finanskode]],Annet[Dato for sjekkforespørsel],\">=\"&DATEVALUE(\" 1. \"&MonthlyExpensesSummary[[#Headers],[Februar]]&_ÅR),Annet[Dato for sjekkforespørsel],\"<=\"&E$4)","v":{"v":0,"d":"kr 0.00"}},{"$f":"SUMIFS(ItemizedExpenses[Sjekkbeløp],ItemizedExpenses[Finanskode],MonthlyExpensesSummary[[#This Row],[Finanskode]],ItemizedExpenses[Fakturadato],\">=\"&F$3,ItemizedExpenses[Fakturadato],\"<=\"&F$4)+SUMIFS(Annet[Sjekkbeløp],Annet[Finanskode],MonthlyExpensesSummary[[#This Row],[Finanskode]],Annet[Dato for sjekkforespørsel],\">=\"&DATEVALUE(\" 1. \"&MonthlyExpensesSummary[[#Headers],[Mars]]&_ÅR),Annet[Dato for sjekkforespørsel],\"<=\"&F$4)","v":{"v":0,"d":"kr 0.00"}},{"$f":"SUMIFS(ItemizedExpenses[Sjekkbeløp],ItemizedExpenses[Finanskode],MonthlyExpensesSummary[[#This Row],[Finanskode]],ItemizedExpenses[Fakturadato],\">=\"&G$3,ItemizedExpenses[Fakturadato],\"<=\"&G$4)+SUMIFS(Annet[Sjekkbeløp],Annet[Finanskode],MonthlyExpensesSummary[[#This Row],[Finanskode]],Annet[Dato for sjekkforespørsel],\">=\"&DATEVALUE(\" 1. \"&MonthlyExpensesSummary[[#Headers],[April]]&_ÅR),Annet[Dato for sjekkforespørsel],\"<=\"&G$4)","v":{"v":0,"d":"kr 0.00"}},{"$f":"SUMIFS(ItemizedExpenses[Sjekkbeløp],ItemizedExpenses[Finanskode],MonthlyExpensesSummary[[#This Row],[Finanskode]],ItemizedExpenses[Fakturadato],\">=\"&H$3,ItemizedExpenses[Fakturadato],\"<=\"&H$4)+SUMIFS(Annet[Sjekkbeløp],Annet[Finanskode],MonthlyExpensesSummary[[#This Row],[Finanskode]],Annet[Dato for sjekkforespørsel],\">=\"&DATEVALUE(\" 1. \"&MonthlyExpensesSummary[[#Headers],[Mai]]&_ÅR),Annet[Dato for sjekkforespørsel],\"<=\"&H$4)","v":{"v":0,"d":"kr 0.00"}},{"$f":"SUMIFS(ItemizedExpenses[Sjekkbeløp],ItemizedExpenses[Finanskode],MonthlyExpensesSummary[[#This Row],[Finanskode]],ItemizedExpenses[Fakturadato],\">=\"&I$3,ItemizedExpenses[Fakturadato],\"<=\"&I$4)+SUMIFS(Annet[Sjekkbeløp],Annet[Finanskode],MonthlyExpensesSummary[[#This Row],[Finanskode]],Annet[Dato for sjekkforespørsel],\">=\"&DATEVALUE(\" 1. \"&MonthlyExpensesSummary[[#Headers],[Juni]]&_ÅR),Annet[Dato for sjekkforespørsel],\"<=\"&I$4)","v":{"v":0,"d":"kr 0.00"}},{"$f":"SUMIFS(ItemizedExpenses[Sjekkbeløp],ItemizedExpenses[Finanskode],MonthlyExpensesSummary[[#This Row],[Finanskode]],ItemizedExpenses[Fakturadato],\">=\"&J$3,ItemizedExpenses[Fakturadato],\"<=\"&J$4)+SUMIFS(Annet[Sjekkbeløp],Annet[Finanskode],MonthlyExpensesSummary[[#This Row],[Finanskode]],Annet[Dato for sjekkforespørsel],\">=\"&DATEVALUE(\" 1. \"&MonthlyExpensesSummary[[#Headers],[Juli]]&_ÅR),Annet[Dato for sjekkforespørsel],\"<=\"&J$4)","v":{"v":0,"d":"kr 0.00"}},{"$f":"SUMIFS(ItemizedExpenses[Sjekkbeløp],ItemizedExpenses[Finanskode],MonthlyExpensesSummary[[#This Row],[Finanskode]],ItemizedExpenses[Fakturadato],\">=\"&K$3,ItemizedExpenses[Fakturadato],\"<=\"&K$4)+SUMIFS(Annet[Sjekkbeløp],Annet[Finanskode],MonthlyExpensesSummary[[#This Row],[Finanskode]],Annet[Dato for sjekkforespørsel],\">=\"&DATEVALUE(\" 1. \"&MonthlyExpensesSummary[[#Headers],[August]]&_ÅR),Annet[Dato for sjekkforespørsel],\"<=\"&K$4)","v":{"v":0,"d":"kr 0.00"}},{"$f":"SUMIFS(ItemizedExpenses[Sjekkbeløp],ItemizedExpenses[Finanskode],MonthlyExpensesSummary[[#This Row],[Finanskode]],ItemizedExpenses[Fakturadato],\">=\"&L$3,ItemizedExpenses[Fakturadato],\"<=\"&L$4)+SUMIFS(Annet[Sjekkbeløp],Annet[Finanskode],MonthlyExpensesSummary[[#This Row],[Finanskode]],Annet[Dato for sjekkforespørsel],\">=\"&DATEVALUE(\" 1. \"&MonthlyExpensesSummary[[#Headers],[September]]&_ÅR),Annet[Dato for sjekkforespørsel],\"<=\"&L$4)","v":{"v":0,"d":"kr 0.00"}},{"$f":"SUMIFS(ItemizedExpenses[Sjekkbeløp],ItemizedExpenses[Finanskode],MonthlyExpensesSummary[[#This Row],[Finanskode]],ItemizedExpenses[Fakturadato],\">=\"&M$3,ItemizedExpenses[Fakturadato],\"<=\"&M$4)+SUMIFS(Annet[Sjekkbeløp],Annet[Finanskode],MonthlyExpensesSummary[[#This Row],[Finanskode]],Annet[Dato for sjekkforespørsel],\">=\"&DATEVALUE(\" 1. \"&MonthlyExpensesSummary[[#Headers],[Oktober]]&_ÅR),Annet[Dato for sjekkforespørsel],\"<=\"&M$4)","v":{"v":0,"d":"kr 0.00"}},{"$f":"SUMIFS(ItemizedExpenses[Sjekkbeløp],ItemizedExpenses[Finanskode],MonthlyExpensesSummary[[#This Row],[Finanskode]],ItemizedExpenses[Fakturadato],\">=\"&N$3,ItemizedExpenses[Fakturadato],\"<=\"&N$4)+SUMIFS(Annet[Sjekkbeløp],Annet[Finanskode],MonthlyExpensesSummary[[#This Row],[Finanskode]],Annet[Dato for sjekkforespørsel],\">=\"&DATEVALUE(\" 1. \"&MonthlyExpensesSummary[[#Headers],[November]]&_ÅR),Annet[Dato for sjekkforespørsel],\"<=\"&N$4)","v":{"v":0,"d":"kr 0.00"}},{"$f":"SUMIFS(ItemizedExpenses[Sjekkbeløp],ItemizedExpenses[Finanskode],MonthlyExpensesSummary[[#This Row],[Finanskode]],ItemizedExpenses[Fakturadato],\">=\"&O$3,ItemizedExpenses[Fakturadato],\"<=\"&O$4)+SUMIFS(Annet[Sjekkbeløp],Annet[Finanskode],MonthlyExpensesSummary[[#This Row],[Finanskode]],Annet[Dato for sjekkforespørsel],\">=\"&DATEVALUE(\" 1. \"&MonthlyExpensesSummary[[#Headers],[Desember]]&_ÅR),Annet[Dato for sjekkforespørsel],\"<=\"&O$4)","v":{"v":0,"d":"kr 0.00"}},{"$f":"SUM(MonthlyExpensesSummary[[#This Row],[Januar]:[Desember]])","v":{"v":0,"d":"kr 0.00"}}]
[null,7000,"Datamaskiner",{"$f":"SUMIFS(ItemizedExpenses[Sjekkbeløp],ItemizedExpenses[Finanskode],MonthlyExpensesSummary[[#This Row],[Finanskode]],ItemizedExpenses[Fakturadato],\">=\"&D$3,ItemizedExpenses[Fakturadato],\"<=\"&D$4)+SUMIFS(Annet[Sjekkbeløp],Annet[Finanskode],MonthlyExpensesSummary[[#This Row],[Finanskode]],Annet[Dato for sjekkforespørsel],\">=\"&DATEVALUE(\" 1. \"&MonthlyExpensesSummary[[#Headers],[Januar]]&_ÅR),Annet[Dato for sjekkforespørsel],\"<=\"&D$4)","v":{"v":0,"d":"kr 0.00"}},{"$f":"SUMIFS(ItemizedExpenses[Sjekkbeløp],ItemizedExpenses[Finanskode],MonthlyExpensesSummary[[#This Row],[Finanskode]],ItemizedExpenses[Fakturadato],\">=\"&E$3,ItemizedExpenses[Fakturadato],\"<=\"&E$4)+SUMIFS(Annet[Sjekkbeløp],Annet[Finanskode],MonthlyExpensesSummary[[#This Row],[Finanskode]],Annet[Dato for sjekkforespørsel],\">=\"&DATEVALUE(\" 1. \"&MonthlyExpensesSummary[[#Headers],[Februar]]&_ÅR),Annet[Dato for sjekkforespørsel],\"<=\"&E$4)","v":{"v":0,"d":"kr 0.00"}},{"$f":"SUMIFS(ItemizedExpenses[Sjekkbeløp],ItemizedExpenses[Finanskode],MonthlyExpensesSummary[[#This Row],[Finanskode]],ItemizedExpenses[Fakturadato],\">=\"&F$3,ItemizedExpenses[Fakturadato],\"<=\"&F$4)+SUMIFS(Annet[Sjekkbeløp],Annet[Finanskode],MonthlyExpensesSummary[[#This Row],[Finanskode]],Annet[Dato for sjekkforespørsel],\">=\"&DATEVALUE(\" 1. \"&MonthlyExpensesSummary[[#Headers],[Mars]]&_ÅR),Annet[Dato for sjekkforespørsel],\"<=\"&F$4)","v":{"v":0,"d":"kr 0.00"}},{"$f":"SUMIFS(ItemizedExpenses[Sjekkbeløp],ItemizedExpenses[Finanskode],MonthlyExpensesSummary[[#This Row],[Finanskode]],ItemizedExpenses[Fakturadato],\">=\"&G$3,ItemizedExpenses[Fakturadato],\"<=\"&G$4)+SUMIFS(Annet[Sjekkbeløp],Annet[Finanskode],MonthlyExpensesSummary[[#This Row],[Finanskode]],Annet[Dato for sjekkforespørsel],\">=\"&DATEVALUE(\" 1. \"&MonthlyExpensesSummary[[#Headers],[April]]&_ÅR),Annet[Dato for sjekkforespørsel],\"<=\"&G$4)","v":{"v":0,"d":"kr 0.00"}},{"$f":"SUMIFS(ItemizedExpenses[Sjekkbeløp],ItemizedExpenses[Finanskode],MonthlyExpensesSummary[[#This Row],[Finanskode]],ItemizedExpenses[Fakturadato],\">=\"&H$3,ItemizedExpenses[Fakturadato],\"<=\"&H$4)+SUMIFS(Annet[Sjekkbeløp],Annet[Finanskode],MonthlyExpensesSummary[[#This Row],[Finanskode]],Annet[Dato for sjekkforespørsel],\">=\"&DATEVALUE(\" 1. \"&MonthlyExpensesSummary[[#Headers],[Mai]]&_ÅR),Annet[Dato for sjekkforespørsel],\"<=\"&H$4)","v":{"v":0,"d":"kr 0.00"}},{"$f":"SUMIFS(ItemizedExpenses[Sjekkbeløp],ItemizedExpenses[Finanskode],MonthlyExpensesSummary[[#This Row],[Finanskode]],ItemizedExpenses[Fakturadato],\">=\"&I$3,ItemizedExpenses[Fakturadato],\"<=\"&I$4)+SUMIFS(Annet[Sjekkbeløp],Annet[Finanskode],MonthlyExpensesSummary[[#This Row],[Finanskode]],Annet[Dato for sjekkforespørsel],\">=\"&DATEVALUE(\" 1. \"&MonthlyExpensesSummary[[#Headers],[Juni]]&_ÅR),Annet[Dato for sjekkforespørsel],\"<=\"&I$4)","v":{"v":0,"d":"kr 0.00"}},{"$f":"SUMIFS(ItemizedExpenses[Sjekkbeløp],ItemizedExpenses[Finanskode],MonthlyExpensesSummary[[#This Row],[Finanskode]],ItemizedExpenses[Fakturadato],\">=\"&J$3,ItemizedExpenses[Fakturadato],\"<=\"&J$4)+SUMIFS(Annet[Sjekkbeløp],Annet[Finanskode],MonthlyExpensesSummary[[#This Row],[Finanskode]],Annet[Dato for sjekkforespørsel],\">=\"&DATEVALUE(\" 1. \"&MonthlyExpensesSummary[[#Headers],[Juli]]&_ÅR),Annet[Dato for sjekkforespørsel],\"<=\"&J$4)","v":{"v":0,"d":"kr 0.00"}},{"$f":"SUMIFS(ItemizedExpenses[Sjekkbeløp],ItemizedExpenses[Finanskode],MonthlyExpensesSummary[[#This Row],[Finanskode]],ItemizedExpenses[Fakturadato],\">=\"&K$3,ItemizedExpenses[Fakturadato],\"<=\"&K$4)+SUMIFS(Annet[Sjekkbeløp],Annet[Finanskode],MonthlyExpensesSummary[[#This Row],[Finanskode]],Annet[Dato for sjekkforespørsel],\">=\"&DATEVALUE(\" 1. \"&MonthlyExpensesSummary[[#Headers],[August]]&_ÅR),Annet[Dato for sjekkforespørsel],\"<=\"&K$4)","v":{"v":0,"d":"kr 0.00"}},{"$f":"SUMIFS(ItemizedExpenses[Sjekkbeløp],ItemizedExpenses[Finanskode],MonthlyExpensesSummary[[#This Row],[Finanskode]],ItemizedExpenses[Fakturadato],\">=\"&L$3,ItemizedExpenses[Fakturadato],\"<=\"&L$4)+SUMIFS(Annet[Sjekkbeløp],Annet[Finanskode],MonthlyExpensesSummary[[#This Row],[Finanskode]],Annet[Dato for sjekkforespørsel],\">=\"&DATEVALUE(\" 1. \"&MonthlyExpensesSummary[[#Headers],[September]]&_ÅR),Annet[Dato for sjekkforespørsel],\"<=\"&L$4)","v":{"v":0,"d":"kr 0.00"}},{"$f":"SUMIFS(ItemizedExpenses[Sjekkbeløp],ItemizedExpenses[Finanskode],MonthlyExpensesSummary[[#This Row],[Finanskode]],ItemizedExpenses[Fakturadato],\">=\"&M$3,ItemizedExpenses[Fakturadato],\"<=\"&M$4)+SUMIFS(Annet[Sjekkbeløp],Annet[Finanskode],MonthlyExpensesSummary[[#This Row],[Finanskode]],Annet[Dato for sjekkforespørsel],\">=\"&DATEVALUE(\" 1. \"&MonthlyExpensesSummary[[#Headers],[Oktober]]&_ÅR),Annet[Dato for sjekkforespørsel],\"<=\"&M$4)","v":{"v":0,"d":"kr 0.00"}},{"$f":"SUMIFS(ItemizedExpenses[Sjekkbeløp],ItemizedExpenses[Finanskode],MonthlyExpensesSummary[[#This Row],[Finanskode]],ItemizedExpenses[Fakturadato],\">=\"&N$3,ItemizedExpenses[Fakturadato],\"<=\"&N$4)+SUMIFS(Annet[Sjekkbeløp],Annet[Finanskode],MonthlyExpensesSummary[[#This Row],[Finanskode]],Annet[Dato for sjekkforespørsel],\">=\"&DATEVALUE(\" 1. \"&MonthlyExpensesSummary[[#Headers],[November]]&_ÅR),Annet[Dato for sjekkforespørsel],\"<=\"&N$4)","v":{"v":0,"d":"kr 0.00"}},{"$f":"SUMIFS(ItemizedExpenses[Sjekkbeløp],ItemizedExpenses[Finanskode],MonthlyExpensesSummary[[#This Row],[Finanskode]],ItemizedExpenses[Fakturadato],\">=\"&O$3,ItemizedExpenses[Fakturadato],\"<=\"&O$4)+SUMIFS(Annet[Sjekkbeløp],Annet[Finanskode],MonthlyExpensesSummary[[#This Row],[Finanskode]],Annet[Dato for sjekkforespørsel],\">=\"&DATEVALUE(\" 1. \"&MonthlyExpensesSummary[[#Headers],[Desember]]&_ÅR),Annet[Dato for sjekkforespørsel],\"<=\"&O$4)","v":{"v":0,"d":"kr 0.00"}},{"$f":"SUM(MonthlyExpensesSummary[[#This Row],[Januar]:[Desember]])","v":{"v":0,"d":"kr 0.00"}}]
[null,8000,"Medisinsk plan",{"$f":"SUMIFS(ItemizedExpenses[Sjekkbeløp],ItemizedExpenses[Finanskode],MonthlyExpensesSummary[[#This Row],[Finanskode]],ItemizedExpenses[Fakturadato],\">=\"&D$3,ItemizedExpenses[Fakturadato],\"<=\"&D$4)+SUMIFS(Annet[Sjekkbeløp],Annet[Finanskode],MonthlyExpensesSummary[[#This Row],[Finanskode]],Annet[Dato for sjekkforespørsel],\">=\"&DATEVALUE(\" 1. \"&MonthlyExpensesSummary[[#Headers],[Januar]]&_ÅR),Annet[Dato for sjekkforespørsel],\"<=\"&D$4)","v":{"v":0,"d":"kr 0.00"}},{"$f":"SUMIFS(ItemizedExpenses[Sjekkbeløp],ItemizedExpenses[Finanskode],MonthlyExpensesSummary[[#This Row],[Finanskode]],ItemizedExpenses[Fakturadato],\">=\"&E$3,ItemizedExpenses[Fakturadato],\"<=\"&E$4)+SUMIFS(Annet[Sjekkbeløp],Annet[Finanskode],MonthlyExpensesSummary[[#This Row],[Finanskode]],Annet[Dato for sjekkforespørsel],\">=\"&DATEVALUE(\" 1. \"&MonthlyExpensesSummary[[#Headers],[Februar]]&_ÅR),Annet[Dato for sjekkforespørsel],\"<=\"&E$4)","v":{"v":0,"d":"kr 0.00"}},{"$f":"SUMIFS(ItemizedExpenses[Sjekkbeløp],ItemizedExpenses[Finanskode],MonthlyExpensesSummary[[#This Row],[Finanskode]],ItemizedExpenses[Fakturadato],\">=\"&F$3,ItemizedExpenses[Fakturadato],\"<=\"&F$4)+SUMIFS(Annet[Sjekkbeløp],Annet[Finanskode],MonthlyExpensesSummary[[#This Row],[Finanskode]],Annet[Dato for sjekkforespørsel],\">=\"&DATEVALUE(\" 1. \"&MonthlyExpensesSummary[[#Headers],[Mars]]&_ÅR),Annet[Dato for sjekkforespørsel],\"<=\"&F$4)","v":{"v":0,"d":"kr 0.00"}},{"$f":"SUMIFS(ItemizedExpenses[Sjekkbeløp],ItemizedExpenses[Finanskode],MonthlyExpensesSummary[[#This Row],[Finanskode]],ItemizedExpenses[Fakturadato],\">=\"&G$3,ItemizedExpenses[Fakturadato],\"<=\"&G$4)+SUMIFS(Annet[Sjekkbeløp],Annet[Finanskode],MonthlyExpensesSummary[[#This Row],[Finanskode]],Annet[Dato for sjekkforespørsel],\">=\"&DATEVALUE(\" 1. \"&MonthlyExpensesSummary[[#Headers],[April]]&_ÅR),Annet[Dato for sjekkforespørsel],\"<=\"&G$4)","v":{"v":0,"d":"kr 0.00"}},{"$f":"SUMIFS(ItemizedExpenses[Sjekkbeløp],ItemizedExpenses[Finanskode],MonthlyExpensesSummary[[#This Row],[Finanskode]],ItemizedExpenses[Fakturadato],\">=\"&H$3,ItemizedExpenses[Fakturadato],\"<=\"&H$4)+SUMIFS(Annet[Sjekkbeløp],Annet[Finanskode],MonthlyExpensesSummary[[#This Row],[Finanskode]],Annet[Dato for sjekkforespørsel],\">=\"&DATEVALUE(\" 1. \"&MonthlyExpensesSummary[[#Headers],[Mai]]&_ÅR),Annet[Dato for sjekkforespørsel],\"<=\"&H$4)","v":{"v":0,"d":"kr 0.00"}},{"$f":"SUMIFS(ItemizedExpenses[Sjekkbeløp],ItemizedExpenses[Finanskode],MonthlyExpensesSummary[[#This Row],[Finanskode]],ItemizedExpenses[Fakturadato],\">=\"&I$3,ItemizedExpenses[Fakturadato],\"<=\"&I$4)+SUMIFS(Annet[Sjekkbeløp],Annet[Finanskode],MonthlyExpensesSummary[[#This Row],[Finanskode]],Annet[Dato for sjekkforespørsel],\">=\"&DATEVALUE(\" 1. \"&MonthlyExpensesSummary[[#Headers],[Juni]]&_ÅR),Annet[Dato for sjekkforespørsel],\"<=\"&I$4)","v":{"v":0,"d":"kr 0.00"}},{"$f":"SUMIFS(ItemizedExpenses[Sjekkbeløp],ItemizedExpenses[Finanskode],MonthlyExpensesSummary[[#This Row],[Finanskode]],ItemizedExpenses[Fakturadato],\">=\"&J$3,ItemizedExpenses[Fakturadato],\"<=\"&J$4)+SUMIFS(Annet[Sjekkbeløp],Annet[Finanskode],MonthlyExpensesSummary[[#This Row],[Finanskode]],Annet[Dato for sjekkforespørsel],\">=\"&DATEVALUE(\" 1. \"&MonthlyExpensesSummary[[#Headers],[Juli]]&_ÅR),Annet[Dato for sjekkforespørsel],\"<=\"&J$4)","v":{"v":0,"d":"kr 0.00"}},{"$f":"SUMIFS(ItemizedExpenses[Sjekkbeløp],ItemizedExpenses[Finanskode],MonthlyExpensesSummary[[#This Row],[Finanskode]],ItemizedExpenses[Fakturadato],\">=\"&K$3,ItemizedExpenses[Fakturadato],\"<=\"&K$4)+SUMIFS(Annet[Sjekkbeløp],Annet[Finanskode],MonthlyExpensesSummary[[#This Row],[Finanskode]],Annet[Dato for sjekkforespørsel],\">=\"&DATEVALUE(\" 1. \"&MonthlyExpensesSummary[[#Headers],[August]]&_ÅR),Annet[Dato for sjekkforespørsel],\"<=\"&K$4)","v":{"v":0,"d":"kr 0.00"}},{"$f":"SUMIFS(ItemizedExpenses[Sjekkbeløp],ItemizedExpenses[Finanskode],MonthlyExpensesSummary[[#This Row],[Finanskode]],ItemizedExpenses[Fakturadato],\">=\"&L$3,ItemizedExpenses[Fakturadato],\"<=\"&L$4)+SUMIFS(Annet[Sjekkbeløp],Annet[Finanskode],MonthlyExpensesSummary[[#This Row],[Finanskode]],Annet[Dato for sjekkforespørsel],\">=\"&DATEVALUE(\" 1. \"&MonthlyExpensesSummary[[#Headers],[September]]&_ÅR),Annet[Dato for sjekkforespørsel],\"<=\"&L$4)","v":{"v":0,"d":"kr 0.00"}},{"$f":"SUMIFS(ItemizedExpenses[Sjekkbeløp],ItemizedExpenses[Finanskode],MonthlyExpensesSummary[[#This Row],[Finanskode]],ItemizedExpenses[Fakturadato],\">=\"&M$3,ItemizedExpenses[Fakturadato],\"<=\"&M$4)+SUMIFS(Annet[Sjekkbeløp],Annet[Finanskode],MonthlyExpensesSummary[[#This Row],[Finanskode]],Annet[Dato for sjekkforespørsel],\">=\"&DATEVALUE(\" 1. \"&MonthlyExpensesSummary[[#Headers],[Oktober]]&_ÅR),Annet[Dato for sjekkforespørsel],\"<=\"&M$4)","v":{"v":0,"d":"kr 0.00"}},{"$f":"SUMIFS(ItemizedExpenses[Sjekkbeløp],ItemizedExpenses[Finanskode],MonthlyExpensesSummary[[#This Row],[Finanskode]],ItemizedExpenses[Fakturadato],\">=\"&N$3,ItemizedExpenses[Fakturadato],\"<=\"&N$4)+SUMIFS(Annet[Sjekkbeløp],Annet[Finanskode],MonthlyExpensesSummary[[#This Row],[Finanskode]],Annet[Dato for sjekkforespørsel],\">=\"&DATEVALUE(\" 1. \"&MonthlyExpensesSummary[[#Headers],[November]]&_ÅR),Annet[Dato for sjekkforespørsel],\"<=\"&N$4)","v":{"v":0,"d":"kr 0.00"}},{"$f":"SUMIFS(ItemizedExpenses[Sjekkbeløp],ItemizedExpenses[Finanskode],MonthlyExpensesSummary[[#This Row],[Finanskode]],ItemizedExpenses[Fakturadato],\">=\"&O$3,ItemizedExpenses[Fakturadato],\"<=\"&O$4)+SUMIFS(Annet[Sjekkbeløp],Annet[Finanskode],MonthlyExpensesSummary[[#This Row],[Finanskode]],Annet[Dato for sjekkforespørsel],\">=\"&DATEVALUE(\" 1. \"&MonthlyExpensesSummary[[#Headers],[Desember]]&_ÅR),Annet[Dato for sjekkforespørsel],\"<=\"&O$4)","v":{"v":0,"d":"kr 0.00"}},{"$f":"SUM(MonthlyExpensesSummary[[#This Row],[Januar]:[Desember]])","v":{"v":0,"d":"kr 0.00"}}]
[null,9000,"Bygningskostnader",{"$f":"SUMIFS(ItemizedExpenses[Sjekkbeløp],ItemizedExpenses[Finanskode],MonthlyExpensesSummary[[#This Row],[Finanskode]],ItemizedExpenses[Fakturadato],\">=\"&D$3,ItemizedExpenses[Fakturadato],\"<=\"&D$4)+SUMIFS(Annet[Sjekkbeløp],Annet[Finanskode],MonthlyExpensesSummary[[#This Row],[Finanskode]],Annet[Dato for sjekkforespørsel],\">=\"&DATEVALUE(\" 1. \"&MonthlyExpensesSummary[[#Headers],[Januar]]&_ÅR),Annet[Dato for sjekkforespørsel],\"<=\"&D$4)","v":{"v":0,"d":"kr 0.00"}},{"$f":"SUMIFS(ItemizedExpenses[Sjekkbeløp],ItemizedExpenses[Finanskode],MonthlyExpensesSummary[[#This Row],[Finanskode]],ItemizedExpenses[Fakturadato],\">=\"&E$3,ItemizedExpenses[Fakturadato],\"<=\"&E$4)+SUMIFS(Annet[Sjekkbeløp],Annet[Finanskode],MonthlyExpensesSummary[[#This Row],[Finanskode]],Annet[Dato for sjekkforespørsel],\">=\"&DATEVALUE(\" 1. \"&MonthlyExpensesSummary[[#Headers],[Februar]]&_ÅR),Annet[Dato for sjekkforespørsel],\"<=\"&E$4)","v":{"v":0,"d":"kr 0.00"}},{"$f":"SUMIFS(ItemizedExpenses[Sjekkbeløp],ItemizedExpenses[Finanskode],MonthlyExpensesSummary[[#This Row],[Finanskode]],ItemizedExpenses[Fakturadato],\">=\"&F$3,ItemizedExpenses[Fakturadato],\"<=\"&F$4)+SUMIFS(Annet[Sjekkbeløp],Annet[Finanskode],MonthlyExpensesSummary[[#This Row],[Finanskode]],Annet[Dato for sjekkforespørsel],\">=\"&DATEVALUE(\" 1. \"&MonthlyExpensesSummary[[#Headers],[Mars]]&_ÅR),Annet[Dato for sjekkforespørsel],\"<=\"&F$4)","v":{"v":0,"d":"kr 0.00"}},{"$f":"SUMIFS(ItemizedExpenses[Sjekkbeløp],ItemizedExpenses[Finanskode],MonthlyExpensesSummary[[#This Row],[Finanskode]],ItemizedExpenses[Fakturadato],\">=\"&G$3,ItemizedExpenses[Fakturadato],\"<=\"&G$4)+SUMIFS(Annet[Sjekkbeløp],Annet[Finanskode],MonthlyExpensesSummary[[#This Row],[Finanskode]],Annet[Dato for sjekkforespørsel],\">=\"&DATEVALUE(\" 1. \"&MonthlyExpensesSummary[[#Headers],[April]]&_ÅR),Annet[Dato for sjekkforespørsel],\"<=\"&G$4)","v":{"v":0,"d":"kr 0.00"}},{"$f":"SUMIFS(ItemizedExpenses[Sjekkbeløp],ItemizedExpenses[Finanskode],MonthlyExpensesSummary[[#This Row],[Finanskode]],ItemizedExpenses[Fakturadato],\">=\"&H$3,ItemizedExpenses[Fakturadato],\"<=\"&H$4)+SUMIFS(Annet[Sjekkbeløp],Annet[Finanskode],MonthlyExpensesSummary[[#This Row],[Finanskode]],Annet[Dato for sjekkforespørsel],\">=\"&DATEVALUE(\" 1. \"&MonthlyExpensesSummary[[#Headers],[Mai]]&_ÅR),Annet[Dato for sjekkforespørsel],\"<=\"&H$4)","v":{"v":0,"d":"kr 0.00"}},{"$f":"SUMIFS(ItemizedExpenses[Sjekkbeløp],ItemizedExpenses[Finanskode],MonthlyExpensesSummary[[#This Row],[Finanskode]],ItemizedExpenses[Fakturadato],\">=\"&I$3,ItemizedExpenses[Fakturadato],\"<=\"&I$4)+SUMIFS(Annet[Sjekkbeløp],Annet[Finanskode],MonthlyExpensesSummary[[#This Row],[Finanskode]],Annet[Dato for sjekkforespørsel],\">=\"&DATEVALUE(\" 1. \"&MonthlyExpensesSummary[[#Headers],[Juni]]&_ÅR),Annet[Dato for sjekkforespørsel],\"<=\"&I$4)","v":{"v":0,"d":"kr 0.00"}},{"$f":"SUMIFS(ItemizedExpenses[Sjekkbeløp],ItemizedExpenses[Finanskode],MonthlyExpensesSummary[[#This Row],[Finanskode]],ItemizedExpenses[Fakturadato],\">=\"&J$3,ItemizedExpenses[Fakturadato],\"<=\"&J$4)+SUMIFS(Annet[Sjekkbeløp],Annet[Finanskode],MonthlyExpensesSummary[[#This Row],[Finanskode]],Annet[Dato for sjekkforespørsel],\">=\"&DATEVALUE(\" 1. \"&MonthlyExpensesSummary[[#Headers],[Juli]]&_ÅR),Annet[Dato for sjekkforespørsel],\"<=\"&J$4)","v":{"v":0,"d":"kr 0.00"}},{"$f":"SUMIFS(ItemizedExpenses[Sjekkbeløp],ItemizedExpenses[Finanskode],MonthlyExpensesSummary[[#This Row],[Finanskode]],ItemizedExpenses[Fakturadato],\">=\"&K$3,ItemizedExpenses[Fakturadato],\"<=\"&K$4)+SUMIFS(Annet[Sjekkbeløp],Annet[Finanskode],MonthlyExpensesSummary[[#This Row],[Finanskode]],Annet[Dato for sjekkforespørsel],\">=\"&DATEVALUE(\" 1. \"&MonthlyExpensesSummary[[#Headers],[August]]&_ÅR),Annet[Dato for sjekkforespørsel],\"<=\"&K$4)","v":{"v":0,"d":"kr 0.00"}},{"$f":"SUMIFS(ItemizedExpenses[Sjekkbeløp],ItemizedExpenses[Finanskode],MonthlyExpensesSummary[[#This Row],[Finanskode]],ItemizedExpenses[Fakturadato],\">=\"&L$3,ItemizedExpenses[Fakturadato],\"<=\"&L$4)+SUMIFS(Annet[Sjekkbeløp],Annet[Finanskode],MonthlyExpensesSummary[[#This Row],[Finanskode]],Annet[Dato for sjekkforespørsel],\">=\"&DATEVALUE(\" 1. \"&MonthlyExpensesSummary[[#Headers],[September]]&_ÅR),Annet[Dato for sjekkforespørsel],\"<=\"&L$4)","v":{"v":0,"d":"kr 0.00"}},{"$f":"SUMIFS(ItemizedExpenses[Sjekkbeløp],ItemizedExpenses[Finanskode],MonthlyExpensesSummary[[#This Row],[Finanskode]],ItemizedExpenses[Fakturadato],\">=\"&M$3,ItemizedExpenses[Fakturadato],\"<=\"&M$4)+SUMIFS(Annet[Sjekkbeløp],Annet[Finanskode],MonthlyExpensesSummary[[#This Row],[Finanskode]],Annet[Dato for sjekkforespørsel],\">=\"&DATEVALUE(\" 1. \"&MonthlyExpensesSummary[[#Headers],[Oktober]]&_ÅR),Annet[Dato for sjekkforespørsel],\"<=\"&M$4)","v":{"v":0,"d":"kr 0.00"}},{"$f":"SUMIFS(ItemizedExpenses[Sjekkbeløp],ItemizedExpenses[Finanskode],MonthlyExpensesSummary[[#This Row],[Finanskode]],ItemizedExpenses[Fakturadato],\">=\"&N$3,ItemizedExpenses[Fakturadato],\"<=\"&N$4)+SUMIFS(Annet[Sjekkbeløp],Annet[Finanskode],MonthlyExpensesSummary[[#This Row],[Finanskode]],Annet[Dato for sjekkforespørsel],\">=\"&DATEVALUE(\" 1. \"&MonthlyExpensesSummary[[#Headers],[November]]&_ÅR),Annet[Dato for sjekkforespørsel],\"<=\"&N$4)","v":{"v":0,"d":"kr 0.00"}},{"$f":"SUMIFS(ItemizedExpenses[Sjekkbeløp],ItemizedExpenses[Finanskode],MonthlyExpensesSummary[[#This Row],[Finanskode]],ItemizedExpenses[Fakturadato],\">=\"&O$3,ItemizedExpenses[Fakturadato],\"<=\"&O$4)+SUMIFS(Annet[Sjekkbeløp],Annet[Finanskode],MonthlyExpensesSummary[[#This Row],[Finanskode]],Annet[Dato for sjekkforespørsel],\">=\"&DATEVALUE(\" 1. \"&MonthlyExpensesSummary[[#Headers],[Desember]]&_ÅR),Annet[Dato for sjekkforespørsel],\"<=\"&O$4)","v":{"v":0,"d":"kr 0.00"}},{"$f":"SUM(MonthlyExpensesSummary[[#This Row],[Januar]:[Desember]])","v":{"v":0,"d":"kr 0.00"}}]
[null,10000,"Markedsføring",{"$f":"SUMIFS(ItemizedExpenses[Sjekkbeløp],ItemizedExpenses[Finanskode],MonthlyExpensesSummary[[#This Row],[Finanskode]],ItemizedExpenses[Fakturadato],\">=\"&D$3,ItemizedExpenses[Fakturadato],\"<=\"&D$4)+SUMIFS(Annet[Sjekkbeløp],Annet[Finanskode],MonthlyExpensesSummary[[#This Row],[Finanskode]],Annet[Dato for sjekkforespørsel],\">=\"&DATEVALUE(\" 1. \"&MonthlyExpensesSummary[[#Headers],[Januar]]&_ÅR),Annet[Dato for sjekkforespørsel],\"<=\"&D$4)","v":{"v":0,"d":"kr 0.00"}},{"$f":"SUMIFS(ItemizedExpenses[Sjekkbeløp],ItemizedExpenses[Finanskode],MonthlyExpensesSummary[[#This Row],[Finanskode]],ItemizedExpenses[Fakturadato],\">=\"&E$3,ItemizedExpenses[Fakturadato],\"<=\"&E$4)+SUMIFS(Annet[Sjekkbeløp],Annet[Finanskode],MonthlyExpensesSummary[[#This Row],[Finanskode]],Annet[Dato for sjekkforespørsel],\">=\"&DATEVALUE(\" 1. \"&MonthlyExpensesSummary[[#Headers],[Februar]]&_ÅR),Annet[Dato for sjekkforespørsel],\"<=\"&E$4)","v":{"v":0,"d":"kr 0.00"}},{"$f":"SUMIFS(ItemizedExpenses[Sjekkbeløp],ItemizedExpenses[Finanskode],MonthlyExpensesSummary[[#This Row],[Finanskode]],ItemizedExpenses[Fakturadato],\">=\"&F$3,ItemizedExpenses[Fakturadato],\"<=\"&F$4)+SUMIFS(Annet[Sjekkbeløp],Annet[Finanskode],MonthlyExpensesSummary[[#This Row],[Finanskode]],Annet[Dato for sjekkforespørsel],\">=\"&DATEVALUE(\" 1. \"&MonthlyExpensesSummary[[#Headers],[Mars]]&_ÅR),Annet[Dato for sjekkforespørsel],\"<=\"&F$4)","v":{"v":0,"d":"kr 0.00"}},{"$f":"SUMIFS(ItemizedExpenses[Sjekkbeløp],ItemizedExpenses[Finanskode],MonthlyExpensesSummary[[#This Row],[Finanskode]],ItemizedExpenses[Fakturadato],\">=\"&G$3,ItemizedExpenses[Fakturadato],\"<=\"&G$4)+SUMIFS(Annet[Sjekkbeløp],Annet[Finanskode],MonthlyExpensesSummary[[#This Row],[Finanskode]],Annet[Dato for sjekkforespørsel],\">=\"&DATEVALUE(\" 1. \"&MonthlyExpensesSummary[[#Headers],[April]]&_ÅR),Annet[Dato for sjekkforespørsel],\"<=\"&G$4)","v":{"v":0,"d":"kr 0.00"}},{"$f":"SUMIFS(ItemizedExpenses[Sjekkbeløp],ItemizedExpenses[Finanskode],MonthlyExpensesSummary[[#This Row],[Finanskode]],ItemizedExpenses[Fakturadato],\">=\"&H$3,ItemizedExpenses[Fakturadato],\"<=\"&H$4)+SUMIFS(Annet[Sjekkbeløp],Annet[Finanskode],MonthlyExpensesSummary[[#This Row],[Finanskode]],Annet[Dato for sjekkforespørsel],\">=\"&DATEVALUE(\" 1. \"&MonthlyExpensesSummary[[#Headers],[Mai]]&_ÅR),Annet[Dato for sjekkforespørsel],\"<=\"&H$4)","v":{"v":0,"d":"kr 0.00"}},{"$f":"SUMIFS(ItemizedExpenses[Sjekkbeløp],ItemizedExpenses[Finanskode],MonthlyExpensesSummary[[#This Row],[Finanskode]],ItemizedExpenses[Fakturadato],\">=\"&I$3,ItemizedExpenses[Fakturadato],\"<=\"&I$4)+SUMIFS(Annet[Sjekkbeløp],Annet[Finanskode],MonthlyExpensesSummary[[#This Row],[Finanskode]],Annet[Dato for sjekkforespørsel],\">=\"&DATEVALUE(\" 1. \"&MonthlyExpensesSummary[[#Headers],[Juni]]&_ÅR),Annet[Dato for sjekkforespørsel],\"<=\"&I$4)","v":{"v":0,"d":"kr 0.00"}},{"$f":"SUMIFS(ItemizedExpenses[Sjekkbeløp],ItemizedExpenses[Finanskode],MonthlyExpensesSummary[[#This Row],[Finanskode]],ItemizedExpenses[Fakturadato],\">=\"&J$3,ItemizedExpenses[Fakturadato],\"<=\"&J$4)+SUMIFS(Annet[Sjekkbeløp],Annet[Finanskode],MonthlyExpensesSummary[[#This Row],[Finanskode]],Annet[Dato for sjekkforespørsel],\">=\"&DATEVALUE(\" 1. \"&MonthlyExpensesSummary[[#Headers],[Juli]]&_ÅR),Annet[Dato for sjekkforespørsel],\"<=\"&J$4)","v":{"v":0,"d":"kr 0.00"}},{"$f":"SUMIFS(ItemizedExpenses[Sjekkbeløp],ItemizedExpenses[Finanskode],MonthlyExpensesSummary[[#This Row],[Finanskode]],ItemizedExpenses[Fakturadato],\">=\"&K$3,ItemizedExpenses[Fakturadato],\"<=\"&K$4)+SUMIFS(Annet[Sjekkbeløp],Annet[Finanskode],MonthlyExpensesSummary[[#This Row],[Finanskode]],Annet[Dato for sjekkforespørsel],\">=\"&DATEVALUE(\" 1. \"&MonthlyExpensesSummary[[#Headers],[August]]&_ÅR),Annet[Dato for sjekkforespørsel],\"<=\"&K$4)","v":{"v":0,"d":"kr 0.00"}},{"$f":"SUMIFS(ItemizedExpenses[Sjekkbeløp],ItemizedExpenses[Finanskode],MonthlyExpensesSummary[[#This Row],[Finanskode]],ItemizedExpenses[Fakturadato],\">=\"&L$3,ItemizedExpenses[Fakturadato],\"<=\"&L$4)+SUMIFS(Annet[Sjekkbeløp],Annet[Finanskode],MonthlyExpensesSummary[[#This Row],[Finanskode]],Annet[Dato for sjekkforespørsel],\">=\"&DATEVALUE(\" 1. \"&MonthlyExpensesSummary[[#Headers],[September]]&_ÅR),Annet[Dato for sjekkforespørsel],\"<=\"&L$4)","v":{"v":0,"d":"kr 0.00"}},{"$f":"SUMIFS(ItemizedExpenses[Sjekkbeløp],ItemizedExpenses[Finanskode],MonthlyExpensesSummary[[#This Row],[Finanskode]],ItemizedExpenses[Fakturadato],\">=\"&M$3,ItemizedExpenses[Fakturadato],\"<=\"&M$4)+SUMIFS(Annet[Sjekkbeløp],Annet[Finanskode],MonthlyExpensesSummary[[#This Row],[Finanskode]],Annet[Dato for sjekkforespørsel],\">=\"&DATEVALUE(\" 1. \"&MonthlyExpensesSummary[[#Headers],[Oktober]]&_ÅR),Annet[Dato for sjekkforespørsel],\"<=\"&M$4)","v":{"v":0,"d":"kr 0.00"}},{"$f":"SUMIFS(ItemizedExpenses[Sjekkbeløp],ItemizedExpenses[Finanskode],MonthlyExpensesSummary[[#This Row],[Finanskode]],ItemizedExpenses[Fakturadato],\">=\"&N$3,ItemizedExpenses[Fakturadato],\"<=\"&N$4)+SUMIFS(Annet[Sjekkbeløp],Annet[Finanskode],MonthlyExpensesSummary[[#This Row],[Finanskode]],Annet[Dato for sjekkforespørsel],\">=\"&DATEVALUE(\" 1. \"&MonthlyExpensesSummary[[#Headers],[November]]&_ÅR),Annet[Dato for sjekkforespørsel],\"<=\"&N$4)","v":{"v":0,"d":"kr 0.00"}},{"$f":"SUMIFS(ItemizedExpenses[Sjekkbeløp],ItemizedExpenses[Finanskode],MonthlyExpensesSummary[[#This Row],[Finanskode]],ItemizedExpenses[Fakturadato],\">=\"&O$3,ItemizedExpenses[Fakturadato],\"<=\"&O$4)+SUMIFS(Annet[Sjekkbeløp],Annet[Finanskode],MonthlyExpensesSummary[[#This Row],[Finanskode]],Annet[Dato for sjekkforespørsel],\">=\"&DATEVALUE(\" 1. \"&MonthlyExpensesSummary[[#Headers],[Desember]]&_ÅR),Annet[Dato for sjekkforespørsel],\"<=\"&O$4)","v":{"v":0,"d":"kr 0.00"}},{"$f":"SUM(MonthlyExpensesSummary[[#This Row],[Januar]:[Desember]])","v":{"v":0,"d":"kr 0.00"}}]
[null,11000,"Veldedige formål",{"$f":"SUMIFS(ItemizedExpenses[Sjekkbeløp],ItemizedExpenses[Finanskode],MonthlyExpensesSummary[[#This Row],[Finanskode]],ItemizedExpenses[Fakturadato],\">=\"&D$3,ItemizedExpenses[Fakturadato],\"<=\"&D$4)+SUMIFS(Annet[Sjekkbeløp],Annet[Finanskode],MonthlyExpensesSummary[[#This Row],[Finanskode]],Annet[Dato for sjekkforespørsel],\">=\"&DATEVALUE(\" 1. \"&MonthlyExpensesSummary[[#Headers],[Januar]]&_ÅR),Annet[Dato for sjekkforespørsel],\"<=\"&D$4)","v":{"v":0,"d":"kr 0.00"}},{"$f":"SUMIFS(ItemizedExpenses[Sjekkbeløp],ItemizedExpenses[Finanskode],MonthlyExpensesSummary[[#This Row],[Finanskode]],ItemizedExpenses[Fakturadato],\">=\"&E$3,ItemizedExpenses[Fakturadato],\"<=\"&E$4)+SUMIFS(Annet[Sjekkbeløp],Annet[Finanskode],MonthlyExpensesSummary[[#This Row],[Finanskode]],Annet[Dato for sjekkforespørsel],\">=\"&DATEVALUE(\" 1. \"&MonthlyExpensesSummary[[#Headers],[Februar]]&_ÅR),Annet[Dato for sjekkforespørsel],\"<=\"&E$4)","v":{"v":0,"d":"kr 0.00"}},{"$f":"SUMIFS(ItemizedExpenses[Sjekkbeløp],ItemizedExpenses[Finanskode],MonthlyExpensesSummary[[#This Row],[Finanskode]],ItemizedExpenses[Fakturadato],\">=\"&F$3,ItemizedExpenses[Fakturadato],\"<=\"&F$4)+SUMIFS(Annet[Sjekkbeløp],Annet[Finanskode],MonthlyExpensesSummary[[#This Row],[Finanskode]],Annet[Dato for sjekkforespørsel],\">=\"&DATEVALUE(\" 1. \"&MonthlyExpensesSummary[[#Headers],[Mars]]&_ÅR),Annet[Dato for sjekkforespørsel],\"<=\"&F$4)","v":{"v":0,"d":"kr 0.00"}},{"$f":"SUMIFS(ItemizedExpenses[Sjekkbeløp],ItemizedExpenses[Finanskode],MonthlyExpensesSummary[[#This Row],[Finanskode]],ItemizedExpenses[Fakturadato],\">=\"&G$3,ItemizedExpenses[Fakturadato],\"<=\"&G$4)+SUMIFS(Annet[Sjekkbeløp],Annet[Finanskode],MonthlyExpensesSummary[[#This Row],[Finanskode]],Annet[Dato for sjekkforespørsel],\">=\"&DATEVALUE(\" 1. \"&MonthlyExpensesSummary[[#Headers],[April]]&_ÅR),Annet[Dato for sjekkforespørsel],\"<=\"&G$4)","v":{"v":0,"d":"kr 0.00"}},{"$f":"SUMIFS(ItemizedExpenses[Sjekkbeløp],ItemizedExpenses[Finanskode],MonthlyExpensesSummary[[#This Row],[Finanskode]],ItemizedExpenses[Fakturadato],\">=\"&H$3,ItemizedExpenses[Fakturadato],\"<=\"&H$4)+SUMIFS(Annet[Sjekkbeløp],Annet[Finanskode],MonthlyExpensesSummary[[#This Row],[Finanskode]],Annet[Dato for sjekkforespørsel],\">=\"&DATEVALUE(\" 1. \"&MonthlyExpensesSummary[[#Headers],[Mai]]&_ÅR),Annet[Dato for sjekkforespørsel],\"<=\"&H$4)","v":{"v":0,"d":"kr 0.00"}},{"$f":"SUMIFS(ItemizedExpenses[Sjekkbeløp],ItemizedExpenses[Finanskode],MonthlyExpensesSummary[[#This Row],[Finanskode]],ItemizedExpenses[Fakturadato],\">=\"&I$3,ItemizedExpenses[Fakturadato],\"<=\"&I$4)+SUMIFS(Annet[Sjekkbeløp],Annet[Finanskode],MonthlyExpensesSummary[[#This Row],[Finanskode]],Annet[Dato for sjekkforespørsel],\">=\"&DATEVALUE(\" 1. \"&MonthlyExpensesSummary[[#Headers],[Juni]]&_ÅR),Annet[Dato for sjekkforespørsel],\"<=\"&I$4)","v":{"v":0,"d":"kr 0.00"}},{"$f":"SUMIFS(ItemizedExpenses[Sjekkbeløp],ItemizedExpenses[Finanskode],MonthlyExpensesSummary[[#This Row],[Finanskode]],ItemizedExpenses[Fakturadato],\">=\"&J$3,ItemizedExpenses[Fakturadato],\"<=\"&J$4)+SUMIFS(Annet[Sjekkbeløp],Annet[Finanskode],MonthlyExpensesSummary[[#This Row],[Finanskode]],Annet[Dato for sjekkforespørsel],\">=\"&DATEVALUE(\" 1. \"&MonthlyExpensesSummary[[#Headers],[Juli]]&_ÅR),Annet[Dato for sjekkforespørsel],\"<=\"&J$4)","v":{"v":0,"d":"kr 0.00"}},{"$f":"SUMIFS(ItemizedExpenses[Sjekkbeløp],ItemizedExpenses[Finanskode],MonthlyExpensesSummary[[#This Row],[Finanskode]],ItemizedExpenses[Fakturadato],\">=\"&K$3,ItemizedExpenses[Fakturadato],\"<=\"&K$4)+SUMIFS(Annet[Sjekkbeløp],Annet[Finanskode],MonthlyExpensesSummary[[#This Row],[Finanskode]],Annet[Dato for sjekkforespørsel],\">=\"&DATEVALUE(\" 1. \"&MonthlyExpensesSummary[[#Headers],[August]]&_ÅR),Annet[Dato for sjekkforespørsel],\"<=\"&K$4)","v":{"v":0,"d":"kr 0.00"}},{"$f":"SUMIFS(ItemizedExpenses[Sjekkbeløp],ItemizedExpenses[Finanskode],MonthlyExpensesSummary[[#This Row],[Finanskode]],ItemizedExpenses[Fakturadato],\">=\"&L$3,ItemizedExpenses[Fakturadato],\"<=\"&L$4)+SUMIFS(Annet[Sjekkbeløp],Annet[Finanskode],MonthlyExpensesSummary[[#This Row],[Finanskode]],Annet[Dato for sjekkforespørsel],\">=\"&DATEVALUE(\" 1. \"&MonthlyExpensesSummary[[#Headers],[September]]&_ÅR),Annet[Dato for sjekkforespørsel],\"<=\"&L$4)","v":{"v":0,"d":"kr 0.00"}},{"$f":"SUMIFS(ItemizedExpenses[Sjekkbeløp],ItemizedExpenses[Finanskode],MonthlyExpensesSummary[[#This Row],[Finanskode]],ItemizedExpenses[Fakturadato],\">=\"&M$3,ItemizedExpenses[Fakturadato],\"<=\"&M$4)+SUMIFS(Annet[Sjekkbeløp],Annet[Finanskode],MonthlyExpensesSummary[[#This Row],[Finanskode]],Annet[Dato for sjekkforespørsel],\">=\"&DATEVALUE(\" 1. \"&MonthlyExpensesSummary[[#Headers],[Oktober]]&_ÅR),Annet[Dato for sjekkforespørsel],\"<=\"&M$4)","v":{"v":0,"d":"kr 0.00"}},{"$f":"SUMIFS(ItemizedExpenses[Sjekkbeløp],ItemizedExpenses[Finanskode],MonthlyExpensesSummary[[#This Row],[Finanskode]],ItemizedExpenses[Fakturadato],\">=\"&N$3,ItemizedExpenses[Fakturadato],\"<=\"&N$4)+SUMIFS(Annet[Sjekkbeløp],Annet[Finanskode],MonthlyExpensesSummary[[#This Row],[Finanskode]],Annet[Dato for sjekkforespørsel],\">=\"&DATEVALUE(\" 1. \"&MonthlyExpensesSummary[[#Headers],[November]]&_ÅR),Annet[Dato for sjekkforespørsel],\"<=\"&N$4)","v":{"v":0,"d":"kr 0.00"}},{"$f":"SUMIFS(ItemizedExpenses[Sjekkbeløp],ItemizedExpenses[Finanskode],MonthlyExpensesSummary[[#This Row],[Finanskode]],ItemizedExpenses[Fakturadato],\">=\"&O$3,ItemizedExpenses[Fakturadato],\"<=\"&O$4)+SUMIFS(Annet[Sjekkbeløp],Annet[Finanskode],MonthlyExpensesSummary[[#This Row],[Finanskode]],Annet[Dato for sjekkforespørsel],\">=\"&DATEVALUE(\" 1. \"&MonthlyExpensesSummary[[#Headers],[Desember]]&_ÅR),Annet[Dato for sjekkforespørsel],\"<=\"&O$4)","v":{"v":0,"d":"kr 0.00"}},{"$f":"SUM(MonthlyExpensesSummary[[#This Row],[Januar]:[Desember]])","v":{"v":0,"d":"kr 0.00"}}]
[null,12000,"Sponsoravtaler",{"$f":"SUMIFS(ItemizedExpenses[Sjekkbeløp],ItemizedExpenses[Finanskode],MonthlyExpensesSummary[[#This Row],[Finanskode]],ItemizedExpenses[Fakturadato],\">=\"&D$3,ItemizedExpenses[Fakturadato],\"<=\"&D$4)+SUMIFS(Annet[Sjekkbeløp],Annet[Finanskode],MonthlyExpensesSummary[[#This Row],[Finanskode]],Annet[Dato for sjekkforespørsel],\">=\"&DATEVALUE(\" 1. \"&MonthlyExpensesSummary[[#Headers],[Januar]]&_ÅR),Annet[Dato for sjekkforespørsel],\"<=\"&D$4)","v":{"v":0,"d":"kr 0.00"}},{"$f":"SUMIFS(ItemizedExpenses[Sjekkbeløp],ItemizedExpenses[Finanskode],MonthlyExpensesSummary[[#This Row],[Finanskode]],ItemizedExpenses[Fakturadato],\">=\"&E$3,ItemizedExpenses[Fakturadato],\"<=\"&E$4)+SUMIFS(Annet[Sjekkbeløp],Annet[Finanskode],MonthlyExpensesSummary[[#This Row],[Finanskode]],Annet[Dato for sjekkforespørsel],\">=\"&DATEVALUE(\" 1. \"&MonthlyExpensesSummary[[#Headers],[Februar]]&_ÅR),Annet[Dato for sjekkforespørsel],\"<=\"&E$4)","v":{"v":0,"d":"kr 0.00"}},{"$f":"SUMIFS(ItemizedExpenses[Sjekkbeløp],ItemizedExpenses[Finanskode],MonthlyExpensesSummary[[#This Row],[Finanskode]],ItemizedExpenses[Fakturadato],\">=\"&F$3,ItemizedExpenses[Fakturadato],\"<=\"&F$4)+SUMIFS(Annet[Sjekkbeløp],Annet[Finanskode],MonthlyExpensesSummary[[#This Row],[Finanskode]],Annet[Dato for sjekkforespørsel],\">=\"&DATEVALUE(\" 1. \"&MonthlyExpensesSummary[[#Headers],[Mars]]&_ÅR),Annet[Dato for sjekkforespørsel],\"<=\"&F$4)","v":{"v":0,"d":"kr 0.00"}},{"$f":"SUMIFS(ItemizedExpenses[Sjekkbeløp],ItemizedExpenses[Finanskode],MonthlyExpensesSummary[[#This Row],[Finanskode]],ItemizedExpenses[Fakturadato],\">=\"&G$3,ItemizedExpenses[Fakturadato],\"<=\"&G$4)+SUMIFS(Annet[Sjekkbeløp],Annet[Finanskode],MonthlyExpensesSummary[[#This Row],[Finanskode]],Annet[Dato for sjekkforespørsel],\">=\"&DATEVALUE(\" 1. \"&MonthlyExpensesSummary[[#Headers],[April]]&_ÅR),Annet[Dato for sjekkforespørsel],\"<=\"&G$4)","v":{"v":0,"d":"kr 0.00"}},{"$f":"SUMIFS(ItemizedExpenses[Sjekkbeløp],ItemizedExpenses[Finanskode],MonthlyExpensesSummary[[#This Row],[Finanskode]],ItemizedExpenses[Fakturadato],\">=\"&H$3,ItemizedExpenses[Fakturadato],\"<=\"&H$4)+SUMIFS(Annet[Sjekkbeløp],Annet[Finanskode],MonthlyExpensesSummary[[#This Row],[Finanskode]],Annet[Dato for sjekkforespørsel],\">=\"&DATEVALUE(\" 1. \"&MonthlyExpensesSummary[[#Headers],[Mai]]&_ÅR),Annet[Dato for sjekkforespørsel],\"<=\"&H$4)","v":{"v":0,"d":"kr 0.00"}},{"$f":"SUMIFS(ItemizedExpenses[Sjekkbeløp],ItemizedExpenses[Finanskode],MonthlyExpensesSummary[[#This Row],[Finanskode]],ItemizedExpenses[Fakturadato],\">=\"&I$3,ItemizedExpenses[Fakturadato],\"<=\"&I$4)+SUMIFS(Annet[Sjekkbeløp],Annet[Finanskode],MonthlyExpensesSummary[[#This Row],[Finanskode]],Annet[Dato for sjekkforespørsel],\">=\"&DATEVALUE(\" 1. \"&MonthlyExpensesSummary[[#Headers],[Juni]]&_ÅR),Annet[Dato for sjekkforespørsel],\"<=\"&I$4)","v":{"v":0,"d":"kr 0.00"}},{"$f":"SUMIFS(ItemizedExpenses[Sjekkbeløp],ItemizedExpenses[Finanskode],MonthlyExpensesSummary[[#This Row],[Finanskode]],ItemizedExpenses[Fakturadato],\">=\"&J$3,ItemizedExpenses[Fakturadato],\"<=\"&J$4)+SUMIFS(Annet[Sjekkbeløp],Annet[Finanskode],MonthlyExpensesSummary[[#This Row],[Finanskode]],Annet[Dato for sjekkforespørsel],\">=\"&DATEVALUE(\" 1. \"&MonthlyExpensesSummary[[#Headers],[Juli]]&_ÅR),Annet[Dato for sjekkforespørsel],\"<=\"&J$4)","v":{"v":0,"d":"kr 0.00"}},{"$f":"SUMIFS(ItemizedExpenses[Sjekkbeløp],ItemizedExpenses[Finanskode],MonthlyExpensesSummary[[#This Row],[Finanskode]],ItemizedExpenses[Fakturadato],\">=\"&K$3,ItemizedExpenses[Fakturadato],\"<=\"&K$4)+SUMIFS(Annet[Sjekkbeløp],Annet[Finanskode],MonthlyExpensesSummary[[#This Row],[Finanskode]],Annet[Dato for sjekkforespørsel],\">=\"&DATEVALUE(\" 1. \"&MonthlyExpensesSummary[[#Headers],[August]]&_ÅR),Annet[Dato for sjekkforespørsel],\"<=\"&K$4)","v":{"v":0,"d":"kr 0.00"}},{"$f":"SUMIFS(ItemizedExpenses[Sjekkbeløp],ItemizedExpenses[Finanskode],MonthlyExpensesSummary[[#This Row],[Finanskode]],ItemizedExpenses[Fakturadato],\">=\"&L$3,ItemizedExpenses[Fakturadato],\"<=\"&L$4)+SUMIFS(Annet[Sjekkbeløp],Annet[Finanskode],MonthlyExpensesSummary[[#This Row],[Finanskode]],Annet[Dato for sjekkforespørsel],\">=\"&DATEVALUE(\" 1. \"&MonthlyExpensesSummary[[#Headers],[September]]&_ÅR),Annet[Dato for sjekkforespørsel],\"<=\"&L$4)","v":{"v":0,"d":"kr 0.00"}},{"$f":"SUMIFS(ItemizedExpenses[Sjekkbeløp],ItemizedExpenses[Finanskode],MonthlyExpensesSummary[[#This Row],[Finanskode]],ItemizedExpenses[Fakturadato],\">=\"&M$3,ItemizedExpenses[Fakturadato],\"<=\"&M$4)+SUMIFS(Annet[Sjekkbeløp],Annet[Finanskode],MonthlyExpensesSummary[[#This Row],[Finanskode]],Annet[Dato for sjekkforespørsel],\">=\"&DATEVALUE(\" 1. \"&MonthlyExpensesSummary[[#Headers],[Oktober]]&_ÅR),Annet[Dato for sjekkforespørsel],\"<=\"&M$4)","v":{"v":0,"d":"kr 0.00"}},{"$f":"SUMIFS(ItemizedExpenses[Sjekkbeløp],ItemizedExpenses[Finanskode],MonthlyExpensesSummary[[#This Row],[Finanskode]],ItemizedExpenses[Fakturadato],\">=\"&N$3,ItemizedExpenses[Fakturadato],\"<=\"&N$4)+SUMIFS(Annet[Sjekkbeløp],Annet[Finanskode],MonthlyExpensesSummary[[#This Row],[Finanskode]],Annet[Dato for sjekkforespørsel],\">=\"&DATEVALUE(\" 1. \"&MonthlyExpensesSummary[[#Headers],[November]]&_ÅR),Annet[Dato for sjekkforespørsel],\"<=\"&N$4)","v":{"v":0,"d":"kr 0.00"}},{"$f":"SUMIFS(ItemizedExpenses[Sjekkbeløp],ItemizedExpenses[Finanskode],MonthlyExpensesSummary[[#This Row],[Finanskode]],ItemizedExpenses[Fakturadato],\">=\"&O$3,ItemizedExpenses[Fakturadato],\"<=\"&O$4)+SUMIFS(Annet[Sjekkbeløp],Annet[Finanskode],MonthlyExpensesSummary[[#This Row],[Finanskode]],Annet[Dato for sjekkforespørsel],\">=\"&DATEVALUE(\" 1. \"&MonthlyExpensesSummary[[#Headers],[Desember]]&_ÅR),Annet[Dato for sjekkforespørsel],\"<=\"&O$4)","v":{"v":0,"d":"kr 0.00"}},{"$f":"SUM(MonthlyExpensesSummary[[#This Row],[Januar]:[Desember]])","v":{"v":0,"d":"kr 0.00"}}]
[null,"Totalt",null,{"$f":"SUBTOTAL(109,MonthlyExpensesSummary[Januar])","v":{"v":0,"d":"kr 0.00"}},{"$f":"SUBTOTAL(109,MonthlyExpensesSummary[Februar])","v":{"v":0,"d":"kr 0.00"}},{"$f":"SUBTOTAL(109,MonthlyExpensesSummary[Mars])","v":{"v":0,"d":"kr 0.00"}},{"$f":"SUBTOTAL(109,MonthlyExpensesSummary[April])","v":{"v":0,"d":"kr 0.00"}},{"$f":"SUBTOTAL(109,MonthlyExpensesSummary[Mai])","v":{"v":0,"d":"kr 0.00"}},{"$f":"SUBTOTAL(109,MonthlyExpensesSummary[Juni])","v":{"v":0,"d":"kr 0.00"}},{"$f":"SUBTOTAL(109,MonthlyExpensesSummary[Juli])","v":{"v":0,"d":"kr 0.00"}},{"$f":"SUBTOTAL(109,MonthlyExpensesSummary[August])","v":{"v":0,"d":"kr 0.00"}},{"$f":"SUBTOTAL(109,MonthlyExpensesSummary[September])","v":{"v":0,"d":"kr 0.00"}},{"$f":"SUBTOTAL(109,MonthlyExpensesSummary[Oktober])","v":{"v":0,"d":"kr 0.00"}},{"$f":"SUBTOTAL(109,MonthlyExpensesSummary[November])","v":{"v":0,"d":"kr 0.00"}},{"$f":"SUBTOTAL(109,MonthlyExpensesSummary[Desember])","v":{"v":0,"d":"kr 0.00"}},{"$f":"SUBTOTAL(109,MonthlyExpensesSummary[Totalt])","v":{"v":0,"d":"kr 0.00"}}]

{"sheet":"SPESIFISERTE UTGIFTER","index":2,"n_rows":6,"n_cols":10,"rows_kept":6,"merged":[[1,1,1,9],[2,1,2,5],[2,6,2,9]]}
[null,"SAMMENDRAG MÅNEDLIGE UTGIFTER","VELDEDIGE FORMÅL OG SPONSORAVTALER"]
[null,"SPESIFISERTE UTGIFTER"]
[null,"Slicer for å filtrere data etter Forespurt av er i denne cellen, og slicer for å filtrere data etter betalingsmottaker er i cellen til høyre.",{"$nulls":4},"Slicer for å filtrere data etter betalingsmottaker er i denne cellen."]
[null,"Finanskode","Fakturadato","Fakturanummer","Etterspurt av","Sjekkbeløp","Betalingsmottaker","Sjekkbruk","Distribusjonsmetode","Fildato"]
[null,1000,"Dato",100,"Jan Høvik",{"v":750.75,"d":"kr 750.75"},"Consolidated Messenger ","Avsender","E-post","Dato"]
[null,7000,"Dato",101,"Ove Hennum",{"v":2500,"d":"kr 2,500.00"},"A. Datum Corporation ","To stasjonære datamaskiner","Kreditt","Dato"]

{"sheet":"VELDEDIGE FORMÅL SPONSORAVTALER","index":3,"n_rows":6,"n_cols":12,"rows_kept":6,"merged":[[1,1,1,11],[2,1,2,5],[2,6,2,11]]}
[null,"SPESIFISERTE UTGIFTER"]
[null,"VELDEDIGE FORMÅL OG SPONSORAVTALER"]
[null,"Slicer for å filtrere data etter Forespurt av er i denne cellen, og slicer for å filtrere data etter betalingsmottaker er i cellen til høyre.",{"$nulls":4},"Slicer for å filtrere data etter betalingsmottaker er i denne cellen."]
[null,"Finanskode","Dato for sjekkforespørsel","Etterspurt av","Sjekkbeløp","Bidrag i fjor","Betalingsmottaker","Brukes til","Godkjent av","Kategori","Distribusjonsmetode","Fildato"]
[null,12000,"Dato","Ingjerd Espeseth",{"v":1000,"d":"kr 1,000.00"},{"v":12,"d":"kr 12.00"},"School of Fine Art ","Stipend","Klemmet Reiersen","Kunst","Sjekk","Dato"]
[null,11000,"Dato","Ingjerd Espeseth",{"v":2500,"d":"kr 2,500.00"},{"v":0,"d":"kr 0.00"},"Wingtip Toys ","Fellesskap","Gunnveig Bakke","Fellesskap","Sjekk","Dato"]